Workbook

Sheet Introduction
E4: Completed on: | G4: YYYY-MM-DD
C10: Summary data template for EITI disclosures
C11: Version 2.0 as of 1 July 2019
C13: Filling in this summary data template with EITI Report data will make your EITI Report data accessible in a machine-readable format. (requirement 7.2.d)
C14: “Make the EITI Report available in an open data format (xlsx or csv) online and publicise its availability.” - EITI Requirement 7.1.c
C16: How publishing EITI Report data works:
C17: 1. Use one excel workbook per fiscal year covered. If you are reporting on both oil & gas and mining, both can fit into one workbook.
C18: 2. Fill in the entire workbook - parts 1-5.
C19: 3. This Data sheet should be submitted alongside the EITI Report. Send it to the International Secretariat: data@eiti.org
C20: 4. The data will be used to populate the global EITI data repository, available on the international EITI website: https://eiti.org/data. You will receive the file back which will be fit for publication via the channels of your choice.
C22: This template should be completed in full and submitted to the EITI International Secretariat for each fiscal year covered under EITI Reporting.
C25: This workbook has five parts. Insert the data starting with part 1 and work your way through to part 5
C27: Part 1 (About): Insert country and data characteristics.
C28: Part 2 (Disclosure checklist): Fill in contextual and aggregate financial data for EITI Requirements 2, 3, 4, 5, and 6.
C29: Part 3 (Reporting entities): Enter reporting entities (Government agencies, companies and projects) and related information.
C30: Part 4 (Government revenues): Enter data on government revenues per revenue stream, according to GFS classification.
C31: Part 5 (Company data): Enter company- and project-level data per revenue stream.
C33: The International Secretariat can provide advice and support on request. Please contact data@eiti.org
C35: Cells in orange must be completed before submission | E35: Cells in light blue are for supplying sources and/or comments | G35: White cells require no action
C37: Cells in grey are for your information: You will receive immediate feedback on many of the data entries and some cells will fill in automatically.
C40: Terminology: Disclosure | E40: Terminology: Simple options
C41: Yes, systematically disclosed: If data is regularly and publicly disclosed by government agencies or companies, and the data is reliable, please select Yes, systematically disclosed | E41: Yes: All the aspects of the question are answered/covered.
C42: Yes, through EITI reporting: If the EITI Report covers certain data gaps in government or corporate disclosures, please select "Yes, in EITI Report". | E42: Partially:Aspects of the question have been answered/covered.
C43: Not available: The data is applicable in the country, but no data or information is available. | E43: No: No information is covered.
C44: Not applicable: If a requirement is not relevant, please select "Not applicable". Refer to any evidence documented as part of the EITI Report, or through minutes of a multi-stakeholder meeting. | E44: Not applicable: The question is not relevant for the case, When it is required, please refer to evidence of non-applicability.
C46: For the latest version of Summary data templates, see https://eiti.org/summary-data-template
C47: Give us your feedback or report a conflict in the data! Write to us at data@eiti.org
C49: EITI International Secretariat
C50: Phone: +47 222 00 800  E-mail: secretariat@eiti.org  Twitter: @EITIorg  www.eiti.org
B51: Country or area | C51: Address: Rådhusgata 26, 0151 Oslo, Norway  P.O. Box: Postboks 340 Sentrum, 0101 Oslo, Norway

Sheet Part 1 - About
C2: Part 1 (About) covers country and data characteristics.
C3: How to complete this sheet:
C4: 1. Starting from the top, select your responses in the grey column. Guidance is provided in yellow boxes once the cell is selected.
C5: 2. Once certain questions are answered, further guidance and questions may appear. Please respond to each of these, until completed.
C6: 3. Include any additional information or comments as needed in the Source/Comments" column.
C7: If you have any questions, please contact data@eiti.org
C9: Cells in orange must be completed | E9: Cells in light blue are for voluntary input | G9: White cells require no action
C11: Part 1 - About
C12: Description | E12: Enter data in this column | G12: Source / Comments
C13: Country or area
B14: Country or area | C14: Country or area name | E14: Armenia
B15: Country or area | C15: ISO Alpha-3 Code | E15: =IFERROR(VLOOKUP($E$14,Table1_Country_codes_and_currencies[],3,FALSE),"") -> ARM
B16: Country or area | C16: National currency name | E16: =IFERROR(VLOOKUP($E$14,Table1_Country_codes_and_currencies[],7,FALSE),"") -> Armenian dram
B17: Country or area | C17: National currency ISO-4217 | E17: =IFERROR(VLOOKUP($E$14,Table1_Country_codes_and_currencies[],5,FALSE),"") -> AMD
C18: Fiscal year covered by this data file
B19: Fiscal year covered by this data file | C19: Start Date | E19: 2021-01-01
B20: Fiscal year covered by this data file | C20: End Date | E20: 2021-12-31
C21: Data source
B22: Data source | C22: Has an EITI Report been prepared by an Independent Administrator? | E22: Yes
B23: Data source | C23: What is the name of the company? | E23: Ernst & Young CJSC
B24: Data source | C24: Date that the EITI Report was made public | E24: 2022-12-22
B25: Data source | C25: URL, EITI Report | E25: https://www.eiti.am/en/annual-reports/2022
B26: Data source | C26: Does the government systematically disclose EITI data at a single location? | E26: Partially
B27: Data source | C27: Publication date of the EITI data | E27: 2022-12-22
B28: Data source | C28: Website link (URL) to EITI data | E28: https://reports.eiti.am/hy/
B29: Data source | C29: Are there other files of relevance? | E29: No
B30: Data source | C30: Date that other file was made public | E30: =IF(OR($E$29=Lists!$I$4,$E$29=Lists!$I$5),"<Date in this format: YYYY-MM-DD>","") -> 
B31: Data source | C31: URL | E31: =IF(OR($E$29=Lists!$I$4,$E$29=Lists!$I$5),"<URL>","") -> 
C32: EITI Requirement 7.2: Data accessibility and open data
C33: Does the government have an open data policy? | E33: Yes, through EITI reporting | G33: =IF(OR($E$29=Lists!$I$4,$E$29=Lists!$I$5),"<URL>","") -> 
B34: Data coverage / scope | C34: Open data portal / files | E34: https://reports.eiti.am/hy/
B35: Data coverage / scope | C35: Data coverage / scope
B36: Data coverage / scope | C36: Sector coverage
B37: Data coverage / scope | C37: Oil | E37: No
B38: Data coverage / scope | C38: Gas | E38: No
B39: Data coverage / scope | C39: Mining (incl. Quarrying) | E39: Yes
B40: Data coverage / scope | C40: Other, non-upstream sectors | E40: No
B41: Data coverage / scope | C41: If yes, please specify name (insert new rows if multiple) | E41: Not applicable
B42: Data coverage / scope | C42: Number of reporting government entities (incl SOEs if recipient) | E42: 3
B43: Data coverage / scope | C43: Number of reporting companies (incl SOEs if payer) | E43: 24 | G43: As of the end of the reporting year, 24 companies in Armenia have the right (permission) to extract metal ore, 10 have been considered material
B44: Data coverage / scope | C44: Reporting currency (ISO-4217 currency codes) | E44: AMD
B45: Data coverage / scope | C45: Exchange rate used: 1 USD = | E45: 503.195
B46: Data coverage / scope | C46: Exchange rate source (URL,…) | E46: www.cba.am
B47: Data coverage / scope | C47: EITI Requirement 4.7: Disaggregation
B48: Data coverage / scope | C48: … by revenue stream | E48: Yes
C49: … by government agency | E49: Yes
C50: … by company | E50: Yes
C51: … by project | E51: Partially
C52: Data overview / requirement | E52: =SUM(E53:E56) -> 1
C53: Systematically disclosed | E53: =COUNTIF('Part 2 - Disclosure checklist'!$D:$D,Lists!$K$4)/SUM(COUNTIF('Part 2 - Disclosure checklist'!$D:$D,"*EITI Reporting or systematically disclosed?*"),COUNTIF('Part 2 - Disclosure checklist'!$D:$D,Lists!$K$4),COUNTIF('Part 2 - Disclosure checklist'!$D:$D,Lists!$K$5),COUNTIF('Part 2 - Disclosure checklist'!$D:$D,Lists!$K$6),COUNTIF('Part 2 - Disclosure checklist'!$D:$D,Lists!$K$7)) -> 0.4736842105 | G53: Calculated using the Disclosure checklist
C54: Through EITI Reporting | E54: =COUNTIF('Part 2 - Disclosure checklist'!$D:$D,Lists!$K$5)/SUM(COUNTIF('Part 2 - Disclosure checklist'!$D:$D,"*EITI Reporting or systematically disclosed?*"),COUNTIF('Part 2 - Disclosure checklist'!$D:$D,Lists!$K$4),COUNTIF('Part 2 - Disclosure checklist'!$D:$D,Lists!$K$5),COUNTIF('Part 2 - Disclosure checklist'!$D:$D,Lists!$K$6),COUNTIF('Part 2 - Disclosure checklist'!$D:$D,Lists!$K$7)) -> 0.3157894737 | G54: Calculated using the Disclosure checklist
B55: Contact details: data submission | C55: Not applicable | E55: =COUNTIF('Part 2 - Disclosure checklist'!$D:$D,Lists!$K$6)/SUM(COUNTIF('Part 2 - Disclosure checklist'!$D:$D,"*EITI Reporting or systematically disclosed?*"),COUNTIF('Part 2 - Disclosure checklist'!$D:$D,Lists!$K$4),COUNTIF('Part 2 - Disclosure checklist'!$D:$D,Lists!$K$5),COUNTIF('Part 2 - Disclosure checklist'!$D:$D,Lists!$K$6),COUNTIF('Part 2 - Disclosure checklist'!$D:$D,Lists!$K$7)) -> 0.1403508772 | G55: Calculated using the Disclosure checklist
B56: Contact details: data submission | C56: Not available | E56: =COUNTIF('Part 2 - Disclosure checklist'!$D:$D,Lists!$K$7)/SUM(COUNTIF('Part 2 - Disclosure checklist'!$D:$D,"*EITI Reporting or systematically disclosed?*"),COUNTIF('Part 2 - Disclosure checklist'!$D:$D,Lists!$K$4),COUNTIF('Part 2 - Disclosure checklist'!$D:$D,Lists!$K$5),COUNTIF('Part 2 - Disclosure checklist'!$D:$D,Lists!$K$6),COUNTIF('Part 2 - Disclosure checklist'!$D:$D,Lists!$K$7)) -> 0.0701754386 | G56: Calculated using the Disclosure checklist
B57: Contact details: data submission | C57: Name and contact information of the person submitting this file
B58: Contact details: data submission | C58: Name | E58: Anna Martirosyan
C59: Organisation | E59: Ernst & Young CJSC
C60: Email address | E60: anna.martirosyan@am.ey.com
C63: For the latest version of Summary data templates, see https://eiti.org/summary-data-template
C64: Give us your feedback or report a conflict in the data! Write to us at data@eiti.org
C66: EITI International Secretariat
C67: Phone: +47 222 00 800  E-mail: secretariat@eiti.org  Twitter: @EITIorg  www.eiti.org
B68: Country or area | C68: Address: Rådhusgata 26, 0151 Oslo, Norway  P.O. Box: Postboks 340 Sentrum, 0101 Oslo, Norway

Sheet Part 2 - Disclosure checklist
B2: Part 2 (Disclosure checklist) covers contextual and aggregate financial data for EITI Requirements 2, 3, 4, 5, and 6.
B3: How to complete this sheet:
B4: For each row, please complete the following steps
B5: 1.Starting from the top, begin by responding to questions in the first column (Inclusion). Guidance will be provided in yellow boxes once the cell is highlighted. Click the cells of each EITI Requirement for the precise language of the EITI Standard.
B6: 2.More guidance will appear as you fill the cells. Please fill out as directed, completing every column for each row before beginning the next.
B7: For example, when choosing "Yes, in the EITI Report" "please include the section in the EITI Report" appears in the Source / units box.
B8: 3. Include any additional information or comments as needed in the Comments / Notes" column.
B9: If you have any questions, please contact data@eiti.org
B11: Cells in orange must be completed | D11: Cells in light blue are for voluntary input | F11: White cells require no action
B13: Part 2 - Disclosure checklist
B14: Please fill in answers to all the questions posed below.
B16: Requirement | D16: Inclusion | F16: Source / units | H16: Comments / Notes
B17: EITI Requirement 2.1: Legal framework and fiscal regime
B18: Does the government publish information about
B19: Laws and regulations? | D19: Yes, systematically disclosed | F19: https://www.arlis.am/, https://e-gov.am/, http://mtad.am/hy/, http://mnp.am/ , http://mes.am/hy/, https://www.ecoinspect.am/laws/
B20: Overview of government agencies' roles? | D20: Yes, systematically disclosed | F20: https://www.arlis.am/
B21: Mineral and petroleum rights' regime? | D21: Yes, systematically disclosed | F21: https://www.arlis.am/
B22: Fiscal regime? | D22: Yes, systematically disclosed | F22: https://www.arlis.am/ | H22: Changes are disclosed in Section 2.1 of EITI report
B24: EITI Requirement 2.2: Contract and license allocations
B25: Does the government publish information about
B26: the award process(es)? | D26: Yes, systematically disclosed | F26: https://www.arlis.am/documentview.aspx?docid=164787
B27: and the technical and financial criteria used? | D27: Yes, systematically disclosed | F27: https://www.arlis.am/DocumentView.aspx?DocID=82720
B28: the transfer process(es)? | D28: Yes, systematically disclosed | F28: https://www.arlis.am/documentview.aspx?docid=164787
B29: and the technical and financial criteria used? | D29: Yes, systematically disclosed | F29: https://www.arlis.am/DocumentView.aspx?DocID=82720
B30: bidding rounds/process(es)? | D30: Yes, systematically disclosed | F30: https://www.arlis.am/documentview.aspx?docid=164787
B31: No. of license awards and transfers for the covered year | D31: 0 | F31: Section 2.2 of EITI report | H31: No license was awarded or transferred during the reporting year
B33: EITI Requirement 2.3: Register of licenses
B34: License register for mining sector | D34: Yes, systematically disclosed | F34: https://mtad.am/pages/extractive-industries-transparency-initiative?tab=1
B35: License register for petroleum sector | D35: Not applicable | F35: See part 1 of this excel file | H35: Armenia posseses no oil reserves,no oil production and no refineries
B37: EITI Requirement 2.4: Contract disclosure
B38: Government policy on contract disclosure | D38: Yes, through EITI reporting | F38: Section 2.2 of EITI report
B39: Are contracts or full license texts disclosed? | D39: Yes, systematically disclosed | F39: https://mtad.am/pages/extractive-industries-transparency-initiative?tab=1
B40: Contract register for mining sector | D40: Yes, systematically disclosed | F40: https://mtad.am/pages/extractive-industries-transparency-initiative?tab=1
B41: Contract register for petroleum sector | D41: Not applicable | F41: See part 1 of this excel file | H41: Armenia posseses no oil reserves,no oil production and no refineries
B43: EITI Requirement 2.5: Beneficial ownership | H43: Section 2.1 of EITI report
B44: Government policy on beneficial ownership | D44: Yes, systematically disclosed | F44: https://www.arlis.am/documentview.aspx?docid=164787 , https://www.arlis.am/DocumentView.aspx?DocID=172246 , https://www.arlis.am/DocumentView.aspx?DocID=171907
B45: Is beneficial ownership data disclosed? | D45: Yes, systematically disclosed | F45: https://www.e-register.am/am/, https://www.eiti.am/hy/legal-owners/?tab=104
B46: Beneficial ownership registry | D46: State Register of the Legal Entities of the Ministry of Justice of the Republic of Armenia | F46: https://www.e-register.am/am/, https://www.eiti.am/hy/legal-owners/?tab=104
B48: EITI Requirement 2.6: State participation
B49: Does the government report how it participates in the extractive sector? | D49: Yes, through EITI reporting | F49: https://www.e-gov.am/sessions_writing_voting/archive/2021/09/30/
B50: References to state-owned enterprises portals or company website(s), for example as stated in the Report (Add rows if several SOEs) | D50: Yes, through EITI reporting | F50: http://www.zcmc.am/eng/ | H50: The particpation share of the Government in the capital charter of ZCMC is set at 25%.
B51: References to state-owned enterprises or company Audited Financial Statement (Add rows if several SOEs) | D51: Yes, systematically disclosed | F51: http://www.zcmc.am/files/FS_ZCMC%20SA_2021_Eng.pdf
B53: EITI Requirement 3.1: Exploration
B54: Overview of the extractive industries, including any significant exploration activities | D54: Yes, through EITI reporting | F54: Section 3.1 of EITI report
B56: EITI Requirement 3.2: Production by commodity
B57: (Harmonised System Codes)
B58: Disclosure of production volumes | D58: Yes, systematically disclosed | F58: https://statbank.armstat.am/pxweb/hy/ArmStatBank/ArmStatBank__3%20Industry,%20Construction,%20trade%20and%20services__32%20Industry/IC-in-e.px/table/tableViewLayout2/?rxid=636adc14-dabb-49b4-853a-d62d5b935d00
B59: Disclosure of production values | D59: Yes, through EITI reporting | H59: Section 3.3 of EITI report
B60: Copper (2603), volume | D60: =SUMIFS(Companies15[[#All],[Production (volume)]],Companies15[[#All],[Commodities (one commodity/row)]],'Part 3 - Reporting entities'!E37) -> 370332.76
B61: =LEFT(B60,SEARCH(",",B60))&" value" -> Copper (2603), value | D61: =SUMIFS(Companies15[[#All],[Production (value)]],Companies15[[#All],[Commodities (one commodity/row)]],'Part 3 - Reporting entities'!E37) -> 1.70074062e+11 | H61: <method of value calculation, if available>
B62: Molybdenum (2613), volume | D62: =SUMIFS(Companies15[[#All],[Production (volume)]],Companies15[[#All],[Commodities (one commodity/row)]],'Part 3 - Reporting entities'!$E$38) -> 9883.48 | F62: Tonnes
B63: =LEFT(B62,SEARCH(",",B62))&" value" -> Molybdenum (2613), value | D63: =SUMIFS(Companies15[[#All],[Production (value)]],Companies15[[#All],[Commodities (one commodity/row)]],'Part 3 - Reporting entities'!$E$38) -> 2.199221672e+10 | F63: AMD | H63: <method of value calculation, if available>
B64: Ferro, alloys, manganese (7202), volume | D64: =SUMIFS(Companies15[[#All],[Production (volume)]],Companies15[[#All],[Commodities (one commodity/row)]],'Part 3 - Reporting entities'!$E$39) -> 8441.77 | F64: Tonnes
B65: =LEFT(B64,SEARCH(", volume",B64))&" value" -> Ferro, alloys, manganese (7202), value | D65: =SUMIFS(Companies15[[#All],[Production (value)]],Companies15[[#All],[Commodities (one commodity/row)]],'Part 3 - Reporting entities'!$E$39) -> 4.179775874e+10 | F65: AMD | H65: <method of value calculation, if available>
B66: Zinc (2608), volume | D66: =SUMIFS(Companies15[[#All],[Production (volume)]],Companies15[[#All],[Commodities (one commodity/row)]],'Part 3 - Reporting entities'!E43) -> 10622 | F66: Tonnes
B67: =LEFT(B66,SEARCH(",",B66))&" value" -> Zinc (2608), value | D67: =SUMIFS(Companies15[[#All],[Production (value)]],Companies15[[#All],[Commodities (one commodity/row)]],'Part 3 - Reporting entities'!E43) -> 8122000000 | F67: AMD | H67: <method of value calculation, if available>
B68: Gold (7108) | D68: =SUMIFS(Companies15[[#All],[Production (volume)]],Companies15[[#All],[Commodities (one commodity/row)]],'Part 3 - Reporting entities'!E49) -> 14018.09 | F68: Tonnes
B69: Gold (7108) | D69: =SUMIFS(Companies15[[#All],[Production (value)]],Companies15[[#All],[Commodities (one commodity/row)]],'Part 3 - Reporting entities'!E49) -> 60827497918 | F69: AMD | H69: <method of value calculation, if available>
B71: EITI Requirement 3.3: Exports
B72: Disclosure of export volumes | D72: Yes, through EITI reporting | F72: https://comtrade.un.org/data/ | H72: Section 3.4.1 of EITI report
B73: Disclosure of export values | D73: Yes, systematically disclosed
B74: Copper (2603), volume | D74: 361001 | F74: Tonnes
B75: =LEFT(B74,SEARCH(",",B74))&" value" -> Copper (2603), value | D75: 697528000 | F75: USD
B76: Molybdenum (2613), volume | D76: 9330 | F76: Tonnes
B77: =LEFT(B76,SEARCH(",",B76))&" value" -> Molybdenum (2613), value | D77: 111413000 | F77: USD
B78: Ferro, alloys, manganese (7202) | D78: 2613 | F78: Tonnes
B79: =LEFT(B78,SEARCH(",",B78))&" value" -> Ferro, value | D79: 180400000 | F79: USD
B80: Zinc (2608), volume | D80: 11998 | F80: Tonnes
B81: =LEFT(B80,SEARCH(",",B80))&" value" -> Zinc (2608), value | D81: 16265000 | F81: USD
B82: Gold (7108), volume | D82: 2257.42 | F82: Tonnes | H82: gold alloy and precious metal concentrate containing gold
B83: =LEFT(B82,SEARCH(",",B82))&" value" -> Gold (7108), value | D83: 121606000 | F83: USD
B85: EITI Requirement 4.1: Comprehensiveness
B86: Does the government fully disclose extractive sector revenues by revenue stream? | D86: Yes, through EITI reporting | F86: Section 4 of EITI report
B87: Are MSG decisions on materiality thresholds publicly available? | D87: Yes, through EITI reporting | F87: https://www.eiti.am/file_manager/EITI%20Documents/Minutes/MSG_meeting_minute_27_04_2022_arm.pdf
B88: Reconciliation coverage | D88: =SUM('Part 5 - Company data'!J68/'Part 4 - Government revenues'!J49) -> 0.4779782846 | F88: Calculated using total of government revenues (part 4), and total per-company data (part 5)
B90: EITI Requirement 4.2: In-kind revenues
B91: Does the government disclose data on in-kind revenues and sales of state share of production? | D91: Not applicable | F91: https://www.eiti.am/hy/agenda-protocols-other-related-documents | H91: MSG decision dated 27 April 2022
B92: If yes, what was the volume received?
B93: If yes, what was the total revenue transferred to the state from the proceeds of oil, gas and minerals sold? | F93: USD
B95: EITI Requirement 4.3: Barter agreements
B96: Does the government disclose information on barter and infrastructure agreements? | D96: Not applicable | F96: https://www.eiti.am/hy/agenda-protocols-other-related-documents | H96: MSG decision dated 27 April 2022
B97: If yes, what was the total revenues received from barter and infrastructure agreements? | F97: USD
B99: EITI Requirement 4.4: Transportation revenues
B100: Does the government disclose information on transportation revenues? | D100: Not applicable | F100: https://www.eiti.am/hy/agenda-protocols-other-related-documents | H100: MSG decision dated 27 April 2022
B101: If yes, what was the total revenues received from transportation of commodities? | F101: USD
B103: EITI Requirement 4.5: SOE transactions
B104: Does the government disclose information on SOE transactions? | D104: Yes, through EITI reporting | F104: https://www.e-gov.am/sessions_writing_voting/archive/2021/09/30/ | H104: The particpation share of the Government in the capital charter of ZCMC is set at 25%.
B105: If yes, what was the total revenues received by SOEs? | D105: Not applicable | F105: USD
B107: EITI Requirement 4.6: Direct subnational payments
B108: ="Does the government disclose information on"&RIGHT(B107,LEN(B107)-SEARCH(":",B107,1))&"?" -> Does the government disclose information on Direct subnational payments? | D108: Yes, through EITI reporting | H108: Section 4.2 of EITI report
B109: If yes, what was the total sub-national revenues received? | D109: =10^9*1.225734108 -> 1225734108 | F109: AMD
B111: EITI Requirement 4.8: Data timeliness
B112: Data timeliness (no. of years from fiscal year end to publication) | D112: =IFERROR(IF(_xlfn.DAYS('Part 1 - About'!$E$24,'Part 1 - About'!$E$20)/365>0,_xlfn.DAYS('Part 1 - About'!$E$24,'Part 1 - About'!$E$20)/365,_xlfn.DAYS('Part 1 - About'!$E$27,'Part 1 - About'!$E$20)/365),"Automatically completed using the 1. About sheet") -> 0.9753424658
B114: EITI Requirement 4.9: Data quality
B115: Does government routinely disclose financial data from requirement 4.1 (full disclosure of revenue streams for both government and companies) of the the EITI Standard? | D115: Yes, through EITI reporting | F115: Section 4 of EITI report | H115: Section 2.5 of EITI report
B116: Is the data subject to credible, independent audits, applying international standards? | D116: Yes, through EITI reporting | F116: Section 1.3 of EITI report
B117: Are government agencies subject to credible, independent audits? | D117: Yes, systematically disclosed | F117: https://www.arlis.am/DocumentView.aspx?docid=12966 , https://www.arlis.am/documentview.aspx?docid=164910 | H117: Relates to internal audit
D118: Yes, systematically disclosed | F118: https://www.arlis.am/documentview.aspx?docid=164910
B119: Are companies subject to credible, independent audits? | D119: Yes, systematically disclosed | F119: https://www.arlis.am/DocumentView.aspx?docID=69162 , https://www.arlis.am/DocumentView.aspx?DocID=164986
B120: Company audits database | D120: Yes, systematically disclosed | F120: https://www.arlis.am/DocumentView.aspx?docid=141595 , https://www.petekamutner.am/Reports_vh.aspx?rptid=0
B122: EITI Requirement 5.1: Distribution of extractive industry revenues
B123: Does the government clarify whether all extractive sector revenues are recorded in the national budget (i.e. enter the government's consolidated / single-treasury account)? | D123: Yes, systematically disclosed | F123: https://www.arlis.am/DocumentView.aspx?DocID=119841
B124: Does the government disclose what value of revenues are not recorded in the budget? | D124: None | F124: =IF(D124=Lists!$K$4,"< Input URL to data source >",IF(D124=Lists!$K$5,"< Reference section in EITI Report >",IF(D124=Lists!$K$6,"< Reference evidence of non-applicability >",""))) ->  | H124: All revenues are recorded in the budget
B126: EITI Requirement 5.2: Subnational transfers
B127: Does the government disclose information on Subnational transfers? | D127: Yes, systematically disclosed | F127: https://minfin.am/hy/page/petakan_byujei_hashvetvutyun_2021_t_tarekan_ | H127: See table 4.3.2 in Section 4.3 of the EITI Report
B128: If yes, how much should the government have transferred according to the revenue sharing formula? | D128: 120178000 | F128: AMD
B129: If yes, what amount of transfers could the government account for? | D129: 114365000 | F129: AMD
B131: EITI Requirement 5.3: Revenue management and expenditures
B132: Does the government disclose whether any extractive sector revenues are earmarked (i.e. pinned to specific uses, programmes, geographical zones)? | D132: Yes, systematically disclosed | F132: https://minfin.am/hy/page/petakan_byujei_hashvetvutyun_2021_t_tarekan_
B133: Does the government disclose a description of the country’s budget and audit processes? | D133: Yes, systematically disclosed | F133: https://minfin.am/hy/page/petakan_byujei_hashvetvutyun_2021_t_tarekan_
B134: Does the government disclose publicly available information about budgets and expenditures? - add rows if several | D134: Yes, systematically disclosed | F134: https://minfin.am/hy/page/petakan_byujei_hashvetvutyun_2020_t_tarekan_
B136: EITI Requirement 6.1: Social expenditures
B137: Does the government disclose information on Social expenditures? | D137: Yes, through EITI reporting | F137: Section 5.3 of EITI report
B138: If yes, what was the total mandatory social expenditures received? | D138: ='Part 4 - Government revenues'!J29 -> 806758000 | F138: AMD
B139: If yes, what was the total voluntary social expenditures received? | D139: 0 | F139: AMD | H139: Volunrary social expenditures are not being disclosed by the government.
B140: Do companies disclose information on Social expenditures? | D140: Yes, through EITI reporting | F140: Section 5.3 of EITI report
B141: If yes, what was the total mandatory social expenditures paid? | D141: 376521307 | F141: AMD
B142: If yes, what was the total voluntary social expenditures paid? | D142: 2052299308 | F142: AMD
B143: Does the government disclose information on environmental payments? | D143: Yes, through EITI reporting | F143: Section 2 of EITI report
B144: If yes, what was the total mandatory environmental payments? | D144: ='Part 4 - Government revenues'!J30 -> 536832000 | F144: AMD
B145: If yes, what was the total voluntary environmental payments? | D145: Not available | F145: AMD | H145: No voluntary environmental payments are made.
B147: EITI Requirement 6.2: Quasi-fiscal expenditures
B148: Does the government or SOEs disclose information on Quasi-fiscal expenditures? | D148: Not applicable | F148: https://www.eiti.am/hy/agenda-protocols-other-related-documents | H148: MSG decision dated 27 April 2022
B149: If yes, what was the total quasi-fiscal expenditures performed by SOEs? | D149: Not applicable | F149: USD
B151: EITI Requirement 6.3: Economic contribution
B152: Does the government disclose information on economic contribution? | D152: Yes, through EITI reporting | F152: Section 5.1 of EITI report
B153: Gross Domestic Product - SNA 2008 C. Mining and quarrying, including oil and gas | D153: =10^6*386755.8 -> 386755800000 | F153: AMD
B154: Gross Domestic Product ASM and informal sector | D154: Not available | F154: USD
B155: Gross Domestic Product - all sectors | D155: 6982962500000 | F155: AMD
B156: Government revenue - extractive industries | D156: =1000000*145879.449309 -> 145879449309 | F156: AMD
B157: Government revenue - all sectors | D157: 1683831463150 | F157: AMD
B158: Exports - extractive industries | D158: =10^6*1230.283426 -> 1230283426 | F158: USD
B159: Exports - all sectors | D159: =10^6*2332.082153 -> 2332082153 | F159: USD
B160: Employment - extractive sector - male | D160: 9700 | F160: people
B161: Employment - extractive sector - female | D161: =D162-D160 -> 800 | F161: people
B162: Employment - extractive sector | D162: 10500 | F162: people
B163: Employment - all sectors | D163: 1088300 | F163: people
B164: Investment - extractive sector | D164: Not available | F164: USD
B165: Investment - all sectors | D165: Not available | F165: USD
B167: EITI Requirement 6.4: Environmental impact
B168: Does the government publish information about
B169: the relevant legal and administrative rules for environmental management? | D169: Yes, systematically disclosed | F169: https://www.arlis.am/documentView.aspx?docid=157091 , https://www.arlis.am/DocumentView.aspx?docID=120135
B170: databases containing environmental impact assessments, certification schemes or similar documentation of environmental management? | D170: Yes, through EITI reporting | F170: Section 5.5 of EITI report
B171: other relevant information on environmental monitoring procedures and administration? | D171: Yes, through EITI reporting | F171: Section 2 of EITI report
B174: For the latest version of Summary data templates, see https://eiti.org/summary-data-template
B175: Give us your feedback or report a conflict in the data! Write to us at data@eiti.org
B177: EITI International Secretariat
B178: Phone: +47 222 00 800  E-mail: secretariat@eiti.org  Twitter: @EITIorg  www.eiti.org
B179: Address: Rådhusgata 26, 0151 Oslo, Norway  P.O. Box: Postboks 340 Sentrum, 0101 Oslo, Norway

Sheet Part 3 - Reporting entities
B2: Part 3 (Reporting entities) covers lists reporting entities (Government agencies, companies and projects) and related information.
B3: How to complete this sheet:
B4: 1.Please begin with the first box (Reporting government entities list), with the name of each government reporting agency
B5: 2.Fill the Company ID row. Guidance will be provided in yellow boxes once the cell is highlighted.
B6: 3.Fill the Reporting Companies' list, beginning with first column "Full Company name". Please fill out as directed, completing every column for each row before beginning the next.
B7: 4.Fill the Reporting projects' list, beginning with first column "Full project name"
B8: If you have any questions, please contact data@eiti.org
B10: Part 3 - Reporting entities
B11: Please provide a list of all reporting entities, alongside relevant information
B13: Reporting government entities list
B14: Full name of agency | C14: Agency type | D14: ID number (if applicable) | E14: Total reported
B15: Tax Revenue Authority | C15: Central goverment | D15: <Use Legal Entity Identifier if available> | E15: =SUMIF(Government_revenues_table[Government entity],Government_agencies[[#This Row],[Full name of agency]],Government_revenues_table[Revenue value]) -> 145879449422
B16: Ministry of Territorial Administration and Development | C16: Central goverment | D16: <Use Legal Entity Identifier if available> | E16: =SUMIF(Government_revenues_table[Government entity],Government_agencies[[#This Row],[Full name of agency]],Government_revenues_table[Revenue value]) -> 2032492514
B17: Ministry of Environment | C17: Central goverment | D17: <Use Legal Entity Identifier if available> | E17: =SUMIF(Government_revenues_table[Government entity],Government_agencies[[#This Row],[Full name of agency]],Government_revenues_table[Revenue value]) -> 321383250.1
B19: Reporting companies' list
B20: Company ID references
B21: Taxpayer Identification Number | D21: https://www.e-register.am/am/
B23: Full company name | C23: Company type | D23: Company ID number | E23: Sector | F23: Commodities (comma-seperated) | G23: Stock exchange listing or company website | H23: Audited financial statement (or balance sheet, cash flows, profit/loss statement if unavailable) | I23: Payments to Governments Report
B24: “Agarak Copper Molybdenum Combine” CJSC | C24: Private | D24: 9700039 | E24: Mining | F24: copper, molybdenum | G24: n/a | H24: https://www.azdarar.am/announcments/cat/115/01100348/ | I24: 4731047632
B25: “Akhtala Mining and Processing Enterprise” CJSC | C25: Private | D25: 6602309 | E25: Mining | F25: copper, gold, silver, zinc, lead, cadmium, sulphur, selenium | G25: n/a | H25: Not available | I25: 865318852
B26: "Chaarat Kapan" CJSC | C26: Private | D26: 9416902 | E26: Mining | F26: gold,silver,copper zinc, lead | G26: n/a | H26: https://www.chaarat.com/wp-content/uploads/2022/04/Chaarat_2021_AR_2022.pdf | I26: 3152126343
B27: “Geopromining Gold” LLC | C27: Private | D27: 1530525 | E27: Mining | F27: gold, silver | G27: n/a | H27: https://gorcntac.am/pages/report?id=917 | I27: 3978669344
B28: “Ler-Ex” LLC | C28: Private | D28: 9412188 | E28: Mining | F28: copper, molybdenum | G28: n/a | H28: Not available | I28: 183722274
B29: “Lichkvaz” CJSC | C29: Private | D29: 2710054 | E29: Mining | F29: gold, silver, copper | G29: n/a | H29: Not available | I29: 2870627129
B30: “Lydian Armenia” CJSC | C30: Private | D30: 91919 | E30: Mining | F30: gold, silver | G30: n/a | H30: https://www.lydianarmenia.am/img/uploadFiles/94843acb7fc42b08c91cLydianArmeniaCJSC_FS_2021.pdf | I30: 421552432
B31: “Meghradzor Gold” LLC | C31: Private | D31: 2709666 | E31: Mining | F31: gold, silver, tellurium | G31: n/a | H31: Not available | I31: 196585967
B32: “Teghout” CJSC | C32: Private | D32: 2700773 | E32: Mining | F32: copper, molybdenum | G32: n/a | H32: Not available | I32: 7859933258
B33: “Zangezur Copper-Molybdenum Combine” CJSC | C33: Private | D33: 9400818 | E33: Mining | F33: copper, molybdenum | G33: n/a | H33: http://www.zcmc.am/files/FS_ZCMC%20SA_2021_Eng.pdf | I33: 46592727259
B35: Reporting projects' list
B36: Full project name | C36: Legal agreement reference number(s): contract, licence, lease, concession, … | D36: Affiliated companies, start with Operator | E36: Commodities (one commodity/row) | F36: Status | G36: Production (volume) | H36: Unit | I36: Production (value) | J36: Currency
B37: SHATV-29/232 | C37: ՊՎ-232 | D37: “Zangezur Copper-Molybdenum Combine“ CJSC | E37: Copper (2603) | F37: Production | G37: =222905-222905*8% -> 205072.6 | H37: Tonnes | I37: 6.509678825e+10 | J37: AMD
B38: SHATV-29/232 | C38: ՊՎ-232 | D38: “Zangezur Copper-Molybdenum Combine“ CJSC | E38: Molybdenum (2613) | F38: Production | G38: =8494-8494*8% -> 7814.48 | H38: Tonnes | I38: 1.570342623e+10 | J38: AMD
B39: SHATV-29/232 | C39: ՊՎ-232 | D39: “Zangezur Copper-Molybdenum Combine“ CJSC | E39: Ferro, alloys, manganese (7202) | F39: Production | G39: 8441.77 | H39: Tonnes | I39: 4.179775874e+10 | J39: AMD
B40: SHATV-29/376 | C40: ՊՎ-376 | D40: "Teghout" LLC | E40: Copper (2603) | F40: Production | G40: 84983 | H40: Tonnes | I40: 4.061513934e+10 | J40: AMD
B41: SHATV-29/376 | C41: ՊՎ-376 | D41: "Teghout" LLC | E41: Molybdenum (2613) | F41: Production | G41: 1252 | H41: Tonnes | I41: 3981847142 | J41: AMD
B42: SHATV-29/183 | C42: ՊՎ-183 | D42: "Chaarat Kapan" CJSC | E42: Copper (2603) | F42: Production | G42: 14119 | H42: Tonnes | I42: 35423330750 | J42: AMD
B43: SHATV-29/183 | C43: ՊՎ-183 | D43: "Chaarat Kapan" CJSC | E43: Zinc (2608) | F43: Production | G43: 10622 | H43: Tonnes | I43: 8122000000 | J43: AMD
B44: SHATV-29/183 | C44: ՊՎ-183 | D44: "Chaarat Kapan" CJSC | E44: Gold (7108) | F44: Production | G44: 6179 | H44: Tonnes | I44: 12720726773 | J44: AMD
B45: SHATV-29/311 | C45: ՊՎ-311 | D45: "Agarak Copper Molybdenum Combine" CJSC | E45: Copper (2603) | F45: Production | G45: 52044 | H45: Tonnes | I45: 18786213487 | J45: AMD
B46: SHATV-29/311 | C46: ՊՎ-311 | D46: "Agarak Copper Molybdenum Combine" CJSC | E46: Molybdenum (2613) | F46: Production | G46: 817 | H46: Tonnes | I46: 2306943344 | J46: AMD
B47: SHATV-29/103 | C47: ՊՎ-103 | D47: "Akhtala Mining and Processing Enterprise" CJSC | E47: Copper (2603) | F47: Production | G47: =10648-10648*8% -> 9796.16 | H47: Tonnes | I47: 8373235237 | J47: AMD
B48: SHATV-29/293 | C48: ՊՎ-293 | D48: "Lichkvaz" LLC | E48: Copper (2603) | F48: Production | G48: 4318 | H48: Tonnes | I48: 1779354939 | J48: AMD
B49: SHATV-29/293 | C49: ՊՎ-293 | D49: "Lichkvaz" LLC | E49: Gold (7108) | F49: Production | G49: 3705 | H49: Tonnes | I49: 1726385665 | J49: AMD
B50: SHATV-29/189 | C50: ՊՎ-189 | D50: Geopromining Gold LLC | E50: Gold (7108) | F50: Production | G50: 2.09 | H50: Tonnes | I50: 44709873082 | J50: AMD
B51: SHATV-29/057 | C51: ՊՎ-057 | D51: Meghradzor Gold LLC | E51: Gold (7108) | F51: Production | G51: 4132 | H51: Tonnes | I51: 1670512398 | J51: AMD
B52: SHAT-29/544 | C52: P-544 | D52: "Geghi Gold" LLC
B53: SHAT-29/515 | C53: ՊՎ-515 | D53: "Baktek Eco" LTD
B54: SHAT-29/547 | C54: ՊՎ-547 | D54: "Gharagyulyanner" CJSC
B55: SHATV-29/514 | C55: ՊՎ-514 | D55: "AT-Metals" LLC
B56: SHAT-29/459 | C56: ՊՎ-459 | D56: "Tatstone" LLC
B57: SHAT-29/371 | C57: ՊՎ-371 | D57: "Vayk Gold" LLC
B58: SHATV-29/093 | C58: ՊՎ-093 | D58: "Sagamar" CJSC
B59: SHAT-29/366 | C59: ՊՎ-366 | D59: "Assat" LLC
B60: SHATV-29/094 | C60: ՊՎ-094 | D60: "Ler-Ex" LLC
B61: SHATV-29/245 | C61: ՊՎ-245 | D61: "Lydian Armenia" LLC
B62: SHATV-29/239 | C62: ՊՎ-239 | D62: "Vardani Zartonk" LLC
B63: SHATV-29/425 | C63: ՊՎ-425 | D63: "Active Lernagorts" LLC
B64: SHATV-29/169 | C64: ՊՎ-169 | D64: "Fortune Resources" LLC
B65: SHATV-29/089 | C65: ՊՎ-089 | D65: "Paramount Gold Mining" CJSC
B66: SHATV-29/213 | C66: ՊՎ-213 | D66: "Multi Group Concern" LLC
B67: SHAT-29/174 | C67: ՊՎ-174 | D67: "Molibdeni Ashkharh" LLC
B69: Add new rows as necessary, right click the row number to the left and select "Insert" | H69: <Select unit>
B72: For the latest version of Summary data templates, see https://eiti.org/summary-data-template
B73: Give us your feedback or report a conflict in the data! Write to us at data@eiti.org
B75: EITI International Secretariat
B76: Phone: +47 222 00 800  E-mail: secretariat@eiti.org  Twitter: @EITIorg  www.eiti.org
B77: Address: Rådhusgata 26, 0151 Oslo, Norway  P.O. Box: Postboks 340 Sentrum, 0101 Oslo, Norway

Sheet Part 4 - Government revenues
N3: Summary data template
N4: =Introduction!G4 -> YYYY-MM-DD
F8: Part 4 (Government revenues) contains comprehensive data on government revenues per revenue stream, according to GFSM classification.
F9: How to complete this sheet:
F10: 1. Enter the name of all government Revenue streams for the extractive sectors, including revenues that fall below agreed materiality thresholds (one row should be used for each individual revenue stream and individual governmant entity)
F11: 2. Enter the name of the receiving Government entity (choose using the dropdown list. It will appear there since you have already entered the government entitiy in Part 3).
F12: 3.Choose the Sector and the GFS Classification this revenue applies to. Use the guidance provided in the GFS Framework for EITI reporting. If a revenue stream cannot be disaggregated by sector, chose "Other".
F13: 4. In the Revenue value column, enter total figure of each revenue stream as disclosed by government, including revenues that were not reconciled.
F14: Remember: Governments receipts from companies on behalf of their employees should be excluded (e.g personal income tax PAYE, employee social security contributions, withholding tax) because they are not considered payments from companies to government.
F15: 5. If there are any payments which are in the EITI Report, but cannot be matched with the GFS categories, please list them in the box below called "Additional information".
F16: If you have any questions, please contact data@eiti.org
F18: Total government revenues from extractive sector (using GFS) | M18: GFS Framework for EITI Reporting
M19: EITI Requirement 5.1.b: Revenue classification
F20: EITI Requirement 4.1.d: Full government disclosure
B21: GFS Level 1 | C21: GFS Level 2 | D21: GFS Level 3 | E21: GFS Level 4 | F21: GFS Classification | G21: Sector | H21: Revenue stream name | I21: Government entity | J21: Revenue value | K21: Currency | M21: What is GFS?
B22: =IFERROR(VLOOKUP(Government_revenues_table[[#This Row],[GFS Classification]],Table6_GFS_codes_classification[],COLUMNS($F:F)+3,FALSE),"Do not enter data") -> Other revenue (14E) | C22: =IFERROR(VLOOKUP(Government_revenues_table[[#This Row],[GFS Classification]],Table6_GFS_codes_classification[],COLUMNS($F:G)+3,FALSE),"Do not enter data") -> Property income (141E) | D22: =IFERROR(VLOOKUP(Government_revenues_table[[#This Row],[GFS Classification]],Table6_GFS_codes_classification[],COLUMNS($F:H)+3,FALSE),"Do not enter data") -> Rent (1415E) | E22: =IFERROR(VLOOKUP(Government_revenues_table[[#This Row],[GFS Classification]],Table6_GFS_codes_classification[],COLUMNS($F:I)+3,FALSE),"Do not enter data") -> Royalties (1415E1) | F22: Royalties (1415E1) | G22: Mining | H22: Mining Royalties | I22: Tax Revenue Authority | J22: 66024636998 | K22: AMD | M22: GFS, or Government Finance Statistics, is an international framework for categorising revenue streams so they are comparable across countries and time-periods. See full framework example below. The framework used below has been developped by the IMF and EITI International Secretariat. The letter E in the GFS codes means that these are codes only used for revenues from extractives companies. The digits to the right were specifically designed for extractive sector companies.
B23: =IFERROR(VLOOKUP(Government_revenues_table[[#This Row],[GFS Classification]],Table6_GFS_codes_classification[],COLUMNS($F:F)+3,FALSE),"Do not enter data") -> Taxes (11E) | C23: =IFERROR(VLOOKUP(Government_revenues_table[[#This Row],[GFS Classification]],Table6_GFS_codes_classification[],COLUMNS($F:G)+3,FALSE),"Do not enter data") -> Taxes on income, profits and capital gains (111E) | D23: =IFERROR(VLOOKUP(Government_revenues_table[[#This Row],[GFS Classification]],Table6_GFS_codes_classification[],COLUMNS($F:H)+3,FALSE),"Do not enter data") -> Ordinary taxes on income, profits and capital gains (1112E1) | E23: =IFERROR(VLOOKUP(Government_revenues_table[[#This Row],[GFS Classification]],Table6_GFS_codes_classification[],COLUMNS($F:I)+3,FALSE),"Do not enter data") -> Ordinary taxes on income, profits and capital gains (1112E1) | F23: Ordinary taxes on income, profits and capital gains (1112E1) | G23: Mining | H23: Profit tax | I23: Tax Revenue Authority | J23: 37472651360 | K23: AMD
B24: =IFERROR(VLOOKUP(Government_revenues_table[[#This Row],[GFS Classification]],Table6_GFS_codes_classification[],COLUMNS($F:F)+3,FALSE),"Do not enter data") -> Taxes (11E) | C24: =IFERROR(VLOOKUP(Government_revenues_table[[#This Row],[GFS Classification]],Table6_GFS_codes_classification[],COLUMNS($F:G)+3,FALSE),"Do not enter data") -> Taxes on goods and services (114E) | D24: =IFERROR(VLOOKUP(Government_revenues_table[[#This Row],[GFS Classification]],Table6_GFS_codes_classification[],COLUMNS($F:H)+3,FALSE),"Do not enter data") -> Taxes on use of goods/permission to use goods or perform activities (1145E) | E24: =IFERROR(VLOOKUP(Government_revenues_table[[#This Row],[GFS Classification]],Table6_GFS_codes_classification[],COLUMNS($F:I)+3,FALSE),"Do not enter data") -> Licence fees (114521E) | F24: Licence fees (114521E) | G24: Mining | H24: State duty for mining permit | I24: Tax Revenue Authority | J24: 21923360000 | K24: AMD
B25: =IFERROR(VLOOKUP(Government_revenues_table[[#This Row],[GFS Classification]],Table6_GFS_codes_classification[],COLUMNS($F:F)+3,FALSE),"Do not enter data") -> Taxes (11E) | C25: =IFERROR(VLOOKUP(Government_revenues_table[[#This Row],[GFS Classification]],Table6_GFS_codes_classification[],COLUMNS($F:G)+3,FALSE),"Do not enter data") -> Taxes on income, profits and capital gains (111E) | D25: =IFERROR(VLOOKUP(Government_revenues_table[[#This Row],[GFS Classification]],Table6_GFS_codes_classification[],COLUMNS($F:H)+3,FALSE),"Do not enter data") -> Ordinary taxes on income, profits and capital gains (1112E1) | E25: =IFERROR(VLOOKUP(Government_revenues_table[[#This Row],[GFS Classification]],Table6_GFS_codes_classification[],COLUMNS($F:I)+3,FALSE),"Do not enter data") -> Ordinary taxes on income, profits and capital gains (1112E1) | F25: Ordinary taxes on income, profits and capital gains (1112E1) | G25: Mining | H25: Income tax | I25: Tax Revenue Authority | J25: 16628212997 | K25: AMD
B26: =IFERROR(VLOOKUP(Government_revenues_table[[#This Row],[GFS Classification]],Table6_GFS_codes_classification[],COLUMNS($F:F)+3,FALSE),"Do not enter data") -> Taxes (11E) | C26: =IFERROR(VLOOKUP(Government_revenues_table[[#This Row],[GFS Classification]],Table6_GFS_codes_classification[],COLUMNS($F:G)+3,FALSE),"Do not enter data") -> Taxes on goods and services (114E) | D26: =IFERROR(VLOOKUP(Government_revenues_table[[#This Row],[GFS Classification]],Table6_GFS_codes_classification[],COLUMNS($F:H)+3,FALSE),"Do not enter data") -> General taxes on goods and services (VAT, sales tax, turnover tax) (1141E) | E26: =IFERROR(VLOOKUP(Government_revenues_table[[#This Row],[GFS Classification]],Table6_GFS_codes_classification[],COLUMNS($F:I)+3,FALSE),"Do not enter data") -> General taxes on goods and services (VAT, sales tax, turnover tax) (1141E) | F26: General taxes on goods and services (VAT, sales tax, turnover tax) (1141E) | G26: Mining | H26: VAT | I26: Tax Revenue Authority | J26: 1793320762 | K26: AMD
B27: =IFERROR(VLOOKUP(Government_revenues_table[[#This Row],[GFS Classification]],Table6_GFS_codes_classification[],COLUMNS($F:F)+3,FALSE),"Do not enter data") -> Taxes (11E) | C27: =IFERROR(VLOOKUP(Government_revenues_table[[#This Row],[GFS Classification]],Table6_GFS_codes_classification[],COLUMNS($F:G)+3,FALSE),"Do not enter data") -> Taxes on international trade and transactions (115E) | D27: =IFERROR(VLOOKUP(Government_revenues_table[[#This Row],[GFS Classification]],Table6_GFS_codes_classification[],COLUMNS($F:H)+3,FALSE),"Do not enter data") -> Customs and other import duties (1151E) | E27: =IFERROR(VLOOKUP(Government_revenues_table[[#This Row],[GFS Classification]],Table6_GFS_codes_classification[],COLUMNS($F:I)+3,FALSE),"Do not enter data") -> Customs and other import duties (1151E) | F27: Customs and other import duties (1151E) | G27: Mining | H27: Custom duties | I27: Tax Revenue Authority | J27: 1229219056 | K27: AMD | M27: For more guidance, please visit https://eiti.org/summary-data-template
B28: =IFERROR(VLOOKUP(Government_revenues_table[[#This Row],[GFS Classification]],Table6_GFS_codes_classification[],COLUMNS($F:F)+3,FALSE),"Do not enter data") -> Other revenue (14E) | C28: =IFERROR(VLOOKUP(Government_revenues_table[[#This Row],[GFS Classification]],Table6_GFS_codes_classification[],COLUMNS($F:G)+3,FALSE),"Do not enter data") -> Property income (141E) | D28: =IFERROR(VLOOKUP(Government_revenues_table[[#This Row],[GFS Classification]],Table6_GFS_codes_classification[],COLUMNS($F:H)+3,FALSE),"Do not enter data") -> Rent (1415E) | E28: =IFERROR(VLOOKUP(Government_revenues_table[[#This Row],[GFS Classification]],Table6_GFS_codes_classification[],COLUMNS($F:I)+3,FALSE),"Do not enter data") -> Other rent payments (1415E5) | F28: Other rent payments (1415E5) | G28: Mining | H28: Rent fee | I28: Ministry of Territorial Administration and Development | J28: 1116376000 | K28: AMD | M28: or, https://www.imf.org/external/np/sta/gfsm/
B29: =IFERROR(VLOOKUP(Government_revenues_table[[#This Row],[GFS Classification]],Table6_GFS_codes_classification[],COLUMNS($F:F)+3,FALSE),"Do not enter data") -> Other revenue (14E) | C29: =IFERROR(VLOOKUP(Government_revenues_table[[#This Row],[GFS Classification]],Table6_GFS_codes_classification[],COLUMNS($F:G)+3,FALSE),"Do not enter data") -> Property income (141E) | D29: =IFERROR(VLOOKUP(Government_revenues_table[[#This Row],[GFS Classification]],Table6_GFS_codes_classification[],COLUMNS($F:H)+3,FALSE),"Do not enter data") -> Rent (1415E) | E29: =IFERROR(VLOOKUP(Government_revenues_table[[#This Row],[GFS Classification]],Table6_GFS_codes_classification[],COLUMNS($F:I)+3,FALSE),"Do not enter data") -> Compulsory transfers to government (infrastructure and other) (1415E4) | F29: Compulsory transfers to government (infrastructure and other) (1415E4) | G29: Mining | H29: Social obligations envisaged by the Contract | I29: Ministry of Territorial Administration and Development | J29: 806758000 | K29: AMD
B30: =IFERROR(VLOOKUP(Government_revenues_table[[#This Row],[GFS Classification]],Table6_GFS_codes_classification[],COLUMNS($F:F)+3,FALSE),"Do not enter data") -> Taxes (11E) | C30: =IFERROR(VLOOKUP(Government_revenues_table[[#This Row],[GFS Classification]],Table6_GFS_codes_classification[],COLUMNS($F:G)+3,FALSE),"Do not enter data") -> Taxes on goods and services (114E) | D30: =IFERROR(VLOOKUP(Government_revenues_table[[#This Row],[GFS Classification]],Table6_GFS_codes_classification[],COLUMNS($F:H)+3,FALSE),"Do not enter data") -> Taxes on use of goods/permission to use goods or perform activities (1145E) | E30: =IFERROR(VLOOKUP(Government_revenues_table[[#This Row],[GFS Classification]],Table6_GFS_codes_classification[],COLUMNS($F:I)+3,FALSE),"Do not enter data") -> Emission and pollution taxes (114522E) | F30: Emission and pollution taxes (114522E) | G30: Mining | H30: Environmental payments (taxes) | I30: Tax Revenue Authority | J30: 536832000 | K30: AMD
B31: =IFERROR(VLOOKUP(Government_revenues_table[[#This Row],[GFS Classification]],Table6_GFS_codes_classification[],COLUMNS($F:F)+3,FALSE),"Do not enter data") -> Other revenue (14E) | C31: =IFERROR(VLOOKUP(Government_revenues_table[[#This Row],[GFS Classification]],Table6_GFS_codes_classification[],COLUMNS($F:G)+3,FALSE),"Do not enter data") -> Property income (141E) | D31: =IFERROR(VLOOKUP(Government_revenues_table[[#This Row],[GFS Classification]],Table6_GFS_codes_classification[],COLUMNS($F:H)+3,FALSE),"Do not enter data") -> Rent (1415E) | E31: =IFERROR(VLOOKUP(Government_revenues_table[[#This Row],[GFS Classification]],Table6_GFS_codes_classification[],COLUMNS($F:I)+3,FALSE),"Do not enter data") -> Compulsory transfers to government (infrastructure and other) (1415E4) | F31: Compulsory transfers to government (infrastructure and other) (1415E4) | G31: Mining | H31: Contribution payment to the Environmental protection fund | I31: Ministry of Environment | J31: 291724385.6 | K31: AMD
B32: =IFERROR(VLOOKUP(Government_revenues_table[[#This Row],[GFS Classification]],Table6_GFS_codes_classification[],COLUMNS($F:F)+3,FALSE),"Do not enter data") -> Taxes (11E) | C32: =IFERROR(VLOOKUP(Government_revenues_table[[#This Row],[GFS Classification]],Table6_GFS_codes_classification[],COLUMNS($F:G)+3,FALSE),"Do not enter data") -> Taxes on goods and services (114E) | D32: =IFERROR(VLOOKUP(Government_revenues_table[[#This Row],[GFS Classification]],Table6_GFS_codes_classification[],COLUMNS($F:H)+3,FALSE),"Do not enter data") -> Taxes on use of goods/permission to use goods or perform activities (1145E) | E32: =IFERROR(VLOOKUP(Government_revenues_table[[#This Row],[GFS Classification]],Table6_GFS_codes_classification[],COLUMNS($F:I)+3,FALSE),"Do not enter data") -> Licence fees (114521E) | F32: Licence fees (114521E) | G32: Mining | H32: State duty for mining permit | I32: Tax Revenue Authority | J32: 190000000 | K32: AMD
B33: =IFERROR(VLOOKUP(Government_revenues_table[[#This Row],[GFS Classification]],Table6_GFS_codes_classification[],COLUMNS($F:F)+3,FALSE),"Do not enter data") -> Taxes (11E) | C33: =IFERROR(VLOOKUP(Government_revenues_table[[#This Row],[GFS Classification]],Table6_GFS_codes_classification[],COLUMNS($F:G)+3,FALSE),"Do not enter data") -> Taxes on property (113E) | D33: =IFERROR(VLOOKUP(Government_revenues_table[[#This Row],[GFS Classification]],Table6_GFS_codes_classification[],COLUMNS($F:H)+3,FALSE),"Do not enter data") -> Taxes on property (113E) | E33: =IFERROR(VLOOKUP(Government_revenues_table[[#This Row],[GFS Classification]],Table6_GFS_codes_classification[],COLUMNS($F:I)+3,FALSE),"Do not enter data") -> Taxes on property (113E) | F33: Taxes on property (113E) | G33: Mining | H33: Real estate tax | I33: Ministry of Territorial Administration and Development | J33: 72471595 | K33: AMD
B34: =IFERROR(VLOOKUP(Government_revenues_table[[#This Row],[GFS Classification]],Table6_GFS_codes_classification[],COLUMNS($F:F)+3,FALSE),"Do not enter data") -> Taxes (11E) | C34: =IFERROR(VLOOKUP(Government_revenues_table[[#This Row],[GFS Classification]],Table6_GFS_codes_classification[],COLUMNS($F:G)+3,FALSE),"Do not enter data") -> Taxes on goods and services (114E) | D34: =IFERROR(VLOOKUP(Government_revenues_table[[#This Row],[GFS Classification]],Table6_GFS_codes_classification[],COLUMNS($F:H)+3,FALSE),"Do not enter data") -> Taxes on use of goods/permission to use goods or perform activities (1145E) | E34: =IFERROR(VLOOKUP(Government_revenues_table[[#This Row],[GFS Classification]],Table6_GFS_codes_classification[],COLUMNS($F:I)+3,FALSE),"Do not enter data") -> Emission and pollution taxes (114522E) | F34: Emission and pollution taxes (114522E) | G34: Mining | H34: Nature utilisation fee | I34: Tax Revenue Authority | J34: 57467088 | K34: AMD
B35: =IFERROR(VLOOKUP(Government_revenues_table[[#This Row],[GFS Classification]],Table6_GFS_codes_classification[],COLUMNS($F:F)+3,FALSE),"Do not enter data") -> Taxes (11E) | C35: =IFERROR(VLOOKUP(Government_revenues_table[[#This Row],[GFS Classification]],Table6_GFS_codes_classification[],COLUMNS($F:G)+3,FALSE),"Do not enter data") -> Taxes on property (113E) | D35: =IFERROR(VLOOKUP(Government_revenues_table[[#This Row],[GFS Classification]],Table6_GFS_codes_classification[],COLUMNS($F:H)+3,FALSE),"Do not enter data") -> Taxes on property (113E) | E35: =IFERROR(VLOOKUP(Government_revenues_table[[#This Row],[GFS Classification]],Table6_GFS_codes_classification[],COLUMNS($F:I)+3,FALSE),"Do not enter data") -> Taxes on property (113E) | F35: Taxes on property (113E) | G35: Mining | H35: Vehicle tax | I35: Ministry of Territorial Administration and Development | J35: 36886919 | K35: AMD
B36: =IFERROR(VLOOKUP(Government_revenues_table[[#This Row],[GFS Classification]],Table6_GFS_codes_classification[],COLUMNS($F:F)+3,FALSE),"Do not enter data") -> Taxes (11E) | C36: =IFERROR(VLOOKUP(Government_revenues_table[[#This Row],[GFS Classification]],Table6_GFS_codes_classification[],COLUMNS($F:G)+3,FALSE),"Do not enter data") -> Taxes on goods and services (114E) | D36: =IFERROR(VLOOKUP(Government_revenues_table[[#This Row],[GFS Classification]],Table6_GFS_codes_classification[],COLUMNS($F:H)+3,FALSE),"Do not enter data") -> Taxes on use of goods/permission to use goods or perform activities (1145E) | E36: =IFERROR(VLOOKUP(Government_revenues_table[[#This Row],[GFS Classification]],Table6_GFS_codes_classification[],COLUMNS($F:I)+3,FALSE),"Do not enter data") -> Emission and pollution taxes (114522E) | F36: Emission and pollution taxes (114522E) | G36: Mining | H36: Monitoring payment | I36: Ministry of Environment | J36: 28158864.5 | K36: AMD
B37: =IFERROR(VLOOKUP(Government_revenues_table[[#This Row],[GFS Classification]],Table6_GFS_codes_classification[],COLUMNS($F:F)+3,FALSE),"Do not enter data") -> Taxes (11E) | C37: =IFERROR(VLOOKUP(Government_revenues_table[[#This Row],[GFS Classification]],Table6_GFS_codes_classification[],COLUMNS($F:G)+3,FALSE),"Do not enter data") -> Taxes on goods and services (114E) | D37: =IFERROR(VLOOKUP(Government_revenues_table[[#This Row],[GFS Classification]],Table6_GFS_codes_classification[],COLUMNS($F:H)+3,FALSE),"Do not enter data") -> Taxes on use of goods/permission to use goods or perform activities (1145E) | E37: =IFERROR(VLOOKUP(Government_revenues_table[[#This Row],[GFS Classification]],Table6_GFS_codes_classification[],COLUMNS($F:I)+3,FALSE),"Do not enter data") -> Emission and pollution taxes (114522E) | F37: Emission and pollution taxes (114522E) | G37: Mining | H37: Environmental fees for goods imported from EEU member states | I37: Tax Revenue Authority | J37: 17623368 | K37: AMD
B38: =IFERROR(VLOOKUP(Government_revenues_table[[#This Row],[GFS Classification]],Table6_GFS_codes_classification[],COLUMNS($F:F)+3,FALSE),"Do not enter data") -> Taxes (11E) | C38: =IFERROR(VLOOKUP(Government_revenues_table[[#This Row],[GFS Classification]],Table6_GFS_codes_classification[],COLUMNS($F:G)+3,FALSE),"Do not enter data") -> Taxes on goods and services (114E) | D38: =IFERROR(VLOOKUP(Government_revenues_table[[#This Row],[GFS Classification]],Table6_GFS_codes_classification[],COLUMNS($F:H)+3,FALSE),"Do not enter data") -> Taxes on use of goods/permission to use goods or perform activities (1145E) | E38: =IFERROR(VLOOKUP(Government_revenues_table[[#This Row],[GFS Classification]],Table6_GFS_codes_classification[],COLUMNS($F:I)+3,FALSE),"Do not enter data") -> Emission and pollution taxes (114522E) | F38: Emission and pollution taxes (114522E) | G38: Mining | H38: Environmental fees for goods imported from non EEU member states | I38: Tax Revenue Authority | J38: 6125793 | K38: AMD
B39: =IFERROR(VLOOKUP(Government_revenues_table[[#This Row],[GFS Classification]],Table6_GFS_codes_classification[],COLUMNS($F:F)+3,FALSE),"Do not enter data") -> Taxes (11E) | C39: =IFERROR(VLOOKUP(Government_revenues_table[[#This Row],[GFS Classification]],Table6_GFS_codes_classification[],COLUMNS($F:G)+3,FALSE),"Do not enter data") -> Taxes on goods and services (114E) | D39: =IFERROR(VLOOKUP(Government_revenues_table[[#This Row],[GFS Classification]],Table6_GFS_codes_classification[],COLUMNS($F:H)+3,FALSE),"Do not enter data") -> Taxes on use of goods/permission to use goods or perform activities (1145E) | E39: =IFERROR(VLOOKUP(Government_revenues_table[[#This Row],[GFS Classification]],Table6_GFS_codes_classification[],COLUMNS($F:I)+3,FALSE),"Do not enter data") -> Emission and pollution taxes (114522E) | F39: Emission and pollution taxes (114522E) | G39: Mining | H39: Environmental assessment fee | I39: Ministry of Environment | J39: 1500000 | K39: AMD
B40: =IFERROR(VLOOKUP(Government_revenues_table[[#This Row],[GFS Classification]],Table6_GFS_codes_classification[],COLUMNS($F:F)+3,FALSE),"Do not enter data") -> Taxes (11E) | C40: =IFERROR(VLOOKUP(Government_revenues_table[[#This Row],[GFS Classification]],Table6_GFS_codes_classification[],COLUMNS($F:G)+3,FALSE),"Do not enter data") -> Taxes on goods and services (114E) | D40: =IFERROR(VLOOKUP(Government_revenues_table[[#This Row],[GFS Classification]],Table6_GFS_codes_classification[],COLUMNS($F:H)+3,FALSE),"Do not enter data") -> Excise taxes (1142E) | E40: =IFERROR(VLOOKUP(Government_revenues_table[[#This Row],[GFS Classification]],Table6_GFS_codes_classification[],COLUMNS($F:I)+3,FALSE),"Do not enter data") -> Excise taxes (1142E) | F40: Excise taxes (1142E) | G40: Mining | H40: Excise taxes | I40: Tax Revenue Authority | J40: 0 | K40: AMD
B41: =IFERROR(VLOOKUP(Government_revenues_table[[#This Row],[GFS Classification]],Table6_GFS_codes_classification[],COLUMNS($F:F)+3,FALSE),"Do not enter data") -> Taxes (11E) | C41: =IFERROR(VLOOKUP(Government_revenues_table[[#This Row],[GFS Classification]],Table6_GFS_codes_classification[],COLUMNS($F:G)+3,FALSE),"Do not enter data") -> Other taxes payable by natural resource companies (116E) | D41: =IFERROR(VLOOKUP(Government_revenues_table[[#This Row],[GFS Classification]],Table6_GFS_codes_classification[],COLUMNS($F:H)+3,FALSE),"Do not enter data") -> Other taxes payable by natural resource companies (116E) | E41: =IFERROR(VLOOKUP(Government_revenues_table[[#This Row],[GFS Classification]],Table6_GFS_codes_classification[],COLUMNS($F:I)+3,FALSE),"Do not enter data") -> Other taxes payable by natural resource companies (116E) | F41: Other taxes payable by natural resource companies (116E) | G41: Mining | H41: Land disposal | I41: Ministry of Territorial Administration and Development | J41: 0 | K41: AMD
B42: =IFERROR(VLOOKUP(Government_revenues_table[[#This Row],[GFS Classification]],Table6_GFS_codes_classification[],COLUMNS($F:F)+3,FALSE),"Do not enter data") -> Taxes (11E) | C42: =IFERROR(VLOOKUP(Government_revenues_table[[#This Row],[GFS Classification]],Table6_GFS_codes_classification[],COLUMNS($F:G)+3,FALSE),"Do not enter data") -> Taxes on property (113E) | D42: =IFERROR(VLOOKUP(Government_revenues_table[[#This Row],[GFS Classification]],Table6_GFS_codes_classification[],COLUMNS($F:H)+3,FALSE),"Do not enter data") -> Taxes on property (113E) | E42: =IFERROR(VLOOKUP(Government_revenues_table[[#This Row],[GFS Classification]],Table6_GFS_codes_classification[],COLUMNS($F:I)+3,FALSE),"Do not enter data") -> Taxes on property (113E) | F42: Taxes on property (113E) | G42: Mining | H42: Land tax | I42: Ministry of Territorial Administration and Development | J42: 0 | K42: AMD
B43: =IFERROR(VLOOKUP(Government_revenues_table[[#This Row],[GFS Classification]],Table6_GFS_codes_classification[],COLUMNS($F:F)+3,FALSE),"Do not enter data") -> Other revenue (14E) | C43: =IFERROR(VLOOKUP(Government_revenues_table[[#This Row],[GFS Classification]],Table6_GFS_codes_classification[],COLUMNS($F:G)+3,FALSE),"Do not enter data") -> Fines, penalties, and forfeits (143E) | D43: =IFERROR(VLOOKUP(Government_revenues_table[[#This Row],[GFS Classification]],Table6_GFS_codes_classification[],COLUMNS($F:H)+3,FALSE),"Do not enter data") -> Fines, penalties, and forfeits (143E) | E43: =IFERROR(VLOOKUP(Government_revenues_table[[#This Row],[GFS Classification]],Table6_GFS_codes_classification[],COLUMNS($F:I)+3,FALSE),"Do not enter data") -> Fines, penalties, and forfeits (143E) | F43: Fines, penalties, and forfeits (143E) | G43: Mining | H43: Penalties | I43: Ministry of Environment | J43: 0 | K43: AMD
B44: =IFERROR(VLOOKUP(Government_revenues_table[[#This Row],[GFS Classification]],Table6_GFS_codes_classification[],COLUMNS($F:F)+3,FALSE),"Do not enter data") -> Taxes (11E) | C44: =IFERROR(VLOOKUP(Government_revenues_table[[#This Row],[GFS Classification]],Table6_GFS_codes_classification[],COLUMNS($F:G)+3,FALSE),"Do not enter data") -> Taxes on goods and services (114E) | D44: =IFERROR(VLOOKUP(Government_revenues_table[[#This Row],[GFS Classification]],Table6_GFS_codes_classification[],COLUMNS($F:H)+3,FALSE),"Do not enter data") -> General taxes on goods and services (VAT, sales tax, turnover tax) (1141E) | E44: =IFERROR(VLOOKUP(Government_revenues_table[[#This Row],[GFS Classification]],Table6_GFS_codes_classification[],COLUMNS($F:I)+3,FALSE),"Do not enter data") -> General taxes on goods and services (VAT, sales tax, turnover tax) (1141E) | F44: General taxes on goods and services (VAT, sales tax, turnover tax) (1141E) | G44: Mining | H44: Environmental payments (taxes) | I44: Tax Revenue Authority | J44: 0 | K44: AMD
B45: =IFERROR(VLOOKUP(Government_revenues_table[[#This Row],[GFS Classification]],Table6_GFS_codes_classification[],COLUMNS($F:F)+3,FALSE),"Do not enter data") -> Taxes (11E) | C45: =IFERROR(VLOOKUP(Government_revenues_table[[#This Row],[GFS Classification]],Table6_GFS_codes_classification[],COLUMNS($F:G)+3,FALSE),"Do not enter data") -> Taxes on goods and services (114E) | D45: =IFERROR(VLOOKUP(Government_revenues_table[[#This Row],[GFS Classification]],Table6_GFS_codes_classification[],COLUMNS($F:H)+3,FALSE),"Do not enter data") -> Excise taxes (1142E) | E45: =IFERROR(VLOOKUP(Government_revenues_table[[#This Row],[GFS Classification]],Table6_GFS_codes_classification[],COLUMNS($F:I)+3,FALSE),"Do not enter data") -> Excise taxes (1142E) | F45: Excise taxes (1142E) | G45: Mining | H45: Import Excise taxes | I45: Tax Revenue Authority | K45: AMD
B46: =IFERROR(VLOOKUP(Government_revenues_table[[#This Row],[GFS Classification]],Table6_GFS_codes_classification[],COLUMNS($F:F)+3,FALSE),"Do not enter data") -> Taxes (11E) | C46: =IFERROR(VLOOKUP(Government_revenues_table[[#This Row],[GFS Classification]],Table6_GFS_codes_classification[],COLUMNS($F:G)+3,FALSE),"Do not enter data") -> Taxes on income, profits and capital gains (111E) | D46: =IFERROR(VLOOKUP(Government_revenues_table[[#This Row],[GFS Classification]],Table6_GFS_codes_classification[],COLUMNS($F:H)+3,FALSE),"Do not enter data") -> Ordinary taxes on income, profits and capital gains (1112E1) | E46: =IFERROR(VLOOKUP(Government_revenues_table[[#This Row],[GFS Classification]],Table6_GFS_codes_classification[],COLUMNS($F:I)+3,FALSE),"Do not enter data") -> Ordinary taxes on income, profits and capital gains (1112E1) | F46: Ordinary taxes on income, profits and capital gains (1112E1) | G46: Mining | H46: Profit tax for non-residents | I46: Tax Revenue Authority | K46: AMD
B47: =IFERROR(VLOOKUP(Government_revenues_table[[#This Row],[GFS Classification]],Table6_GFS_codes_classification[],COLUMNS($F:F)+3,FALSE),"Do not enter data") -> Taxes (11E) | C47: =IFERROR(VLOOKUP(Government_revenues_table[[#This Row],[GFS Classification]],Table6_GFS_codes_classification[],COLUMNS($F:G)+3,FALSE),"Do not enter data") -> Taxes on property (113E) | D47: =IFERROR(VLOOKUP(Government_revenues_table[[#This Row],[GFS Classification]],Table6_GFS_codes_classification[],COLUMNS($F:H)+3,FALSE),"Do not enter data") -> Taxes on property (113E) | E47: =IFERROR(VLOOKUP(Government_revenues_table[[#This Row],[GFS Classification]],Table6_GFS_codes_classification[],COLUMNS($F:I)+3,FALSE),"Do not enter data") -> Taxes on property (113E) | F47: Taxes on property (113E) | G47: Mining | H47: Property tax | I47: Ministry of Territorial Administration and Development | K47: AMD
I49: Total in USD | J49: =SUMIF(Government_revenues_table[Currency],"USD",Government_revenues_table[Revenue value])+(IFERROR(SUMIF(Government_revenues_table[Currency],"<>USD",Government_revenues_table[Revenue value])/'Part 1 - About'!$E$45,0)) -> 294584257
I51: ="Total in "&'Part 1 - About'!E44 -> Total in AMD | J51: =IF('Part 1 - About'!$E$44="USD",0,SUMIF(Government_revenues_table[Currency],'Part 1 - About'!$E$44,Government_revenues_table[Revenue value]))+(IFERROR(SUMIF(Government_revenues_table[Currency],"USD",Government_revenues_table[Revenue value])*'Part 1 - About'!$E$45,0)) -> 1.482333252e+11
F55: Additional information
F56: Any additional information that is not eligible for inclusion in the table above, please include below as comments.
F59: Comment 1 | G59: Please include comments here. PAYE and withholding taxes are not paid on behalf of companies and should therefore be excluded
F60: Comment 2 | G60: Insert additional rows as needed. E.g., the below table covers the excluded revenues
G61: Sector | H61: Revenue stream name | I61: Government entity | J61: Revenue value | K61: Currency
G64: Total | J64: =SUM(J62:J63) -> 0 | K64: USD
F65: Comment 3 | G65: Please include comments here.
F66: Comment 4 | G66: Please include comments here.
F67: Comment 5 | G67: Please include comments here.
F77: For the latest version of Summary data templates, see https://eiti.org/summary-data-template
F78: Give us your feedback or report a conflict in the data! Write to us at data@eiti.org
F80: EITI International Secretariat
F81: Phone: +47 222 00 800  E-mail: secretariat@eiti.org  Twitter: @EITIorg  www.eiti.org
F82: Address: Rådhusgata 26, 0151 Oslo, Norway  P.O. Box: Postboks 340 Sentrum, 0101 Oslo, Norway

Sheet Part 5 - Company data
C2: Part 5 (Company data) contains company- and project-level data per revenue stream. The companies and projects are available from drop-down since the data is entered in sheet 3.
C3: How to fill this sheet:
C4: 1. Select company name from drop-down menu
C5: 2. Select government collecting entity and payment name from drop-down menu
C6: 3. Indicate whether the payment stream is (i) levied on project and (ii) reported by project
C7: 4. Enter project information: project name, and reporting currency
C8: 5. Enter revenue value,as disclosed by government and any comments that may be applicable
C9: If you have any questions, please contact data@eiti.org
C11: Government revenues by company and project
B13: EITI Requirement 4.1.c: Company payments ; EITI Requirement 4.7: Project-level reporting
B14: Sector | C14: Company | D14: Government entity | E14: Revenue stream name | F14: Levied on project (Y/N) | G14: Reported by project (Y/N) | H14: Project name | I14: Reporting currency | J14: Revenue value | K14: Payment made in-kind (Y/N) | L14: In-kind volume (if applicable) | M14: Unit (if applicable) | N14: Column1
C15: “Agarak Copper Molybdenum Combine” CJSC | D15: Tax Revenue Authority | E15: Mining Royalties | F15: Yes | G15: Yes | H15: SHATV-29/311 | I15: AMD | J15: 4603867473
C16: “Agarak Copper Molybdenum Combine” CJSC | D16: Tax Revenue Authority | E16: VAT | F16: No | G16: No | I16: AMD | J16: 0
C17: “Agarak Copper Molybdenum Combine” CJSC | D17: Tax Revenue Authority | E17: Custom duties | F17: No | G17: No | I17: AMD | J17: 59456646
C18: “Agarak Copper Molybdenum Combine” CJSC | D18: Ministry of Territorial Administration and Development | E18: Rent fee | F18: Yes | G18: Yes | H18: SHATV-29/311 | I18: AMD | J18: 31723513
C19: “Agarak Copper Molybdenum Combine” CJSC | D19: Ministry of Territorial Administration and Development | E19: Social obligations envisaged by the Contract | F19: Yes | G19: Yes | H19: SHATV-29/311 | I19: AMD | J19: 36000000
C20: “Akhtala Mining And Processing Enterprise” CJSC | D20: Tax Revenue Authority | E20: Mining Royalties | F20: Yes | G20: Yes | H20: SHATV-29/103 | I20: AMD | J20: 753813006
C21: “Akhtala Mining And Processing Enterprise” CJSC | D21: Tax Revenue Authority | E21: VAT | F21: No | G21: No | I21: AMD | J21: 0
C22: “Akhtala Mining And Processing Enterprise” CJSC | D22: Tax Revenue Authority | E22: Custom duties | F22: No | G22: No | I22: AMD | J22: 19931838
C23: “Akhtala Mining And Processing Enterprise” CJSC | D23: Ministry of Territorial Administration and Development | E23: Rent fee | F23: Yes | G23: Yes | H23: SHATV-29/103 | I23: AMD | J23: 9574008
C24: “Akhtala Mining And Processing Enterprise” CJSC | D24: Ministry of Territorial Administration and Development | E24: Social obligations envisaged by the Contract | F24: Yes | G24: Yes | H24: SHATV-29/103 | I24: AMD | J24: 82000000
C25: “Chaarat Kapan” CJSC | D25: Tax Revenue Authority | E25: Mining Royalties | F25: Yes | G25: Yes | H25: SHATV-29/183 | I25: AMD | J25: 2942052023
C26: “Chaarat Kapan” CJSC | D26: Tax Revenue Authority | E26: VAT | F26: No | G26: No | I26: AMD | J26: 0
C27: “Chaarat Kapan” CJSC | D27: Tax Revenue Authority | E27: Custom duties | F27: No | G27: No | I27: AMD | J27: 76683032
C28: “Chaarat Kapan” CJSC | D28: Ministry of Territorial Administration and Development | E28: Rent fee | F28: Yes | G28: Yes | H28: SHATV-29/183 | I28: AMD | J28: 113391288
C29: “Chaarat Kapan” CJSC | D29: Ministry of Territorial Administration and Development | E29: Social obligations envisaged by the Contract | F29: Yes | G29: Yes | H29: SHATV-29/183 | I29: AMD | J29: 20000000
C30: “Geopromining Gold“ LLC | D30: Tax Revenue Authority | E30: Mining Royalties | F30: Yes | G30: Yes | H30: SHATV-29/189 | I30: AMD | J30: 3623610055
C31: “Geopromining Gold“ LLC | D31: Tax Revenue Authority | E31: VAT | F31: No | G31: No | I31: AMD | J31: 0
C32: “Geopromining Gold“ LLC | D32: Tax Revenue Authority | E32: Custom duties | F32: No | G32: No | I32: AMD | J32: 236099289
C33: “Geopromining Gold“ LLC | D33: Ministry of Territorial Administration and Development | E33: Rent fee | F33: Yes | G33: Yes | H33: SHATV-29/189 | I33: AMD | J33: 68960000
C34: “Geopromining Gold“ LLC | D34: Ministry of Territorial Administration and Development | E34: Social obligations envisaged by the Contract | F34: Yes | G34: Yes | H34: SHATV-29/189 | I34: AMD | J34: 50000000
C35: “Ler-Ex” LLC | D35: Tax Revenue Authority | E35: Mining Royalties | F35: Yes | G35: Yes | H35: SHATV-29/094 | I35: AMD | J35: 0
C36: “Ler-Ex” LLC | D36: Tax Revenue Authority | E36: VAT | F36: No | G36: No | I36: AMD | J36: 182084897
C37: “Ler-Ex” LLC | D37: Tax Revenue Authority | E37: Custom duties | F37: No | G37: No | I37: AMD | J37: 0
C38: “Ler-Ex” LLC | D38: Ministry of Territorial Administration and Development | E38: Rent fee | F38: Yes | G38: Yes | H38: SHATV-29/094 | I38: AMD | J38: 1637377
C39: “Ler-Ex” LLC | D39: Ministry of Territorial Administration and Development | E39: Social obligations envisaged by the Contract | F39: Yes | G39: Yes | H39: SHATV-29/094 | I39: AMD | J39: 0
C40: “Lichkvaz” LLC | D40: Tax Revenue Authority | E40: Mining Royalties | F40: Yes | G40: Yes | H40: SHATV-29/293 | I40: AMD | J40: 1297164729
C41: “Lichkvaz” LLC | D41: Tax Revenue Authority | E41: VAT | F41: No | G41: No | I41: AMD | J41: 1551404253
C42: “Lichkvaz” LLC | D42: Tax Revenue Authority | E42: Custom duties | F42: No | G42: No | I42: AMD | J42: 11491766
C43: “Lichkvaz” LLC | D43: Ministry of Territorial Administration and Development | E43: Rent fee | F43: Yes | G43: Yes | H43: SHATV-29/293 | I43: AMD | J43: 3651456
C44: “Lichkvaz” LLC | D44: Ministry of Territorial Administration and Development | E44: Social obligations envisaged by the Contract | F44: Yes | G44: Yes | H44: SHATV-29/293 | I44: AMD | J44: 6914925
C45: “Lydian Armenia” LLC | D45: Tax Revenue Authority | E45: Mining Royalties | F45: Yes | G45: Yes | H45: SHATV-29/245 | I45: AMD | J45: 0
C46: “Lydian Armenia” LLC | D46: Tax Revenue Authority | E46: VAT | F46: No | G46: No | I46: AMD | J46: 0
C47: “Lydian Armenia” LLC | D47: Tax Revenue Authority | E47: Custom duties | F47: No | G47: No | I47: AMD | J47: 12001501
C48: “Lydian Armenia” LLC | D48: Ministry of Territorial Administration and Development | E48: Rent fee | F48: Yes | G48: Yes | H48: SHATV-29/245 | I48: AMD | J48: 409550931
C49: “Lydian Armenia” LLC | D49: Ministry of Territorial Administration and Development | E49: Social obligations envisaged by the Contract | F49: Yes | G49: Yes | H49: SHATV-29/245 | I49: AMD | J49: 0
C50: “Meghradzor Gold” LLC | D50: Tax Revenue Authority | E50: Mining Royalties | F50: Yes | G50: Yes | H50: SHATV-29/057 | I50: AMD | J50: 150564616
C51: “Meghradzor Gold” LLC | D51: Tax Revenue Authority | E51: VAT | F51: No | G51: No | I51: AMD | J51: 0
C52: “Meghradzor Gold” LLC | D52: Tax Revenue Authority | E52: Custom duties | F52: No | G52: No | I52: AMD | J52: 15261079
C53: “Meghradzor Gold” LLC | D53: Ministry of Territorial Administration and Development | E53: Rent fee | F53: Yes | G53: Yes | H53: SHATV-29/057 | I53: AMD | J53: 24910272
C54: “Meghradzor Gold” LLC | D54: Ministry of Territorial Administration and Development | E54: Social obligations envisaged by the Contract | F54: Yes | G54: Yes | H54: SHATV-29/057 | I54: AMD | J54: 5850000
C55: “Teghout” CJSC | D55: Tax Revenue Authority | E55: Mining Royalties | F55: Yes | G55: Yes | H55: SHATV-29/376 | I55: AMD | J55: 7351940956
C56: “Teghout” CJSC | D56: Tax Revenue Authority | E56: VAT | F56: No | G56: No | I56: AMD | J56: 0
C57: “Teghout” CJSC | D57: Tax Revenue Authority | E57: Custom duties | F57: No | G57: No | I57: AMD | J57: 294822352
C58: “Teghout” CJSC | D58: Ministry of Territorial Administration and Development | E58: Rent fee | F58: Yes | G58: Yes | H58: SHATV-29/376 | I58: AMD | J58: 43169950
C59: “Teghout” CJSC | D59: Ministry of Territorial Administration and Development | E59: Social obligations envisaged by the Contract | F59: Yes | G59: Yes | H59: SHATV-29/376 | I59: AMD | J59: 170000000
C60: “Zangezur Copper-Molybdenum Combine“ CJSC | D60: Tax Revenue Authority | E60: Mining Royalties | F60: Yes | G60: Yes | H60: SHATV-29/232 | I60: AMD | J60: 45301624140
C61: “Zangezur Copper-Molybdenum Combine“ CJSC | D61: Tax Revenue Authority | E61: VAT | F61: No | G61: No | I61: AMD | J61: 51694250
C62: “Zangezur Copper-Molybdenum Combine“ CJSC | D62: Tax Revenue Authority | E62: Custom duties | F62: No | G62: No | I62: AMD | J62: 497272500
C63: “Zangezur Copper-Molybdenum Combine“ CJSC | D63: Ministry of Territorial Administration and Development | E63: Rent fee | F63: Yes | G63: Yes | H63: SHATV-29/232 | I63: AMD | J63: 373886369
C64: “Zangezur Copper-Molybdenum Combine“ CJSC | D64: Ministry of Territorial Administration and Development | E64: Social obligations envisaged by the Contract | F64: Yes | G64: Yes | H64: SHATV-29/232 | I64: AMD | J64: 368250000
H68: Total in USD | J68: =SUMIF(Table10[Reporting currency],"USD",Table10[Revenue value])+(IFERROR(SUMIF(Table10[Reporting currency],"<>USD",Table10[Revenue value])/'Part 1 - About'!$E$45,0)) -> 140804877.8
H70: ="Total in "&'Part 1 - About'!$E$44 -> Total in AMD | J70: =IF('Part 1 - About'!$E$44="USD",0,SUMIF(Table10[Reporting currency],'Part 1 - About'!$E$44,Table10[Revenue value]))+(IFERROR(SUMIF(Table10[Reporting currency],"USD",Table10[Revenue value])*'Part 1 - About'!$E$45,0)) -> 70852310490
C72: Additional information
C73: Any additional information that is not eligible for inclusion in the table above, please include below as comments.
C75: Comment 1
C76: Comment 2
C77: Comment 3
C78: Comment 4
C79: Comment 5
C83: For the latest version of Summary data templates, see https://eiti.org/summary-data-template
C84: Give us your feedback or report a conflict in the data! Write to us at data@eiti.org
C86: EITI International Secretariat
C87: Phone: +47 222 00 800  E-mail: secretariat@eiti.org  Twitter: @EITIorg  www.eiti.org
C88: Address: Rådhusgata 26, 0151 Oslo, Norway  P.O. Box: Postboks 340 Sentrum, 0101 Oslo, Norway

Sheet UPSLIDE_UndoFormatting (hidden)
A1: 149 | B1: 10

Sheet UPSLIDE_Undo (hidden)
A1: 149 | B1: 10

Sheet Lists (hidden)
A1: Table 1 - Country codes | I1: Table 2 - Simple options | K1: Table 3 - Reporting options | N1: Table 5 - Commodities list | S1: Table 6 - GFS Codes / Classification | AA1: Table 7 - Sectors | AC1: Table 8 - Project phases | AE1: Table 9 - Government entity types
A2: Country or Area name | B2: ISO Alpha-2 Code | C2: ISO Alpha-3 Code | D2: ISO Numeric Code (UN M49) | E2: Currency code (ISO-4217) | F2: Currency code num (ISO-4217) | G2: Currency | I2: List | K2: List | N2: HS ProductCode | O2: HS Product Description | P2: HS Product Description w volume | S2: Combined | T2: GFS description | U2: GFS Code | V2: GFS Level 1 | W2: GFS Level 2 | X2: GFS Level 3 | Y2: GFS Level 4 | AA2: Sector(s) | AC2: Project phases | AE2: < Agency type >
A3: United States of America | B3: US | C3: USA | D3: 840 | E3: USD | F3: 840 | G3: United States dollar | I3: < Choose option > | K3: < EITI Reporting or systematically disclosed? > | N3: 2501 | O3: Salt and pure sodium chloride (2501) | P3: Salt and pure sodium chloride (2501), volume | S3: Ordinary taxes on income, profits and capital gains (1112E1) | T3: Ordinary taxes on income, profits and capital gains | U3: 1112E1 | V3: Taxes (11E) | W3: Taxes on income, profits and capital gains (111E) | X3: Ordinary taxes on income, profits and capital gains (1112E1) | Y3: Ordinary taxes on income, profits and capital gains (1112E1) | AA3: <Choose sector> | AC3: < Choose phase > | AE3: Central goverment
A4: Afghanistan | B4: AF | C4: AFG | D4: 4 | E4: AFN | F4: 971 | G4: Afghan afghani | I4: Yes | K4: Yes, systematically disclosed | N4: 2502 | O4: Iron pyrites (2502) | P4: Iron pyrites (2502), volume | S4: Extraordinary taxes on income, profits and capital gains (1112E2) | T4: Extraordinary taxes on income, profits and capital gains | U4: 1112E2 | V4: Taxes (11E) | W4: Taxes on income, profits and capital gains (111E) | X4: Extraordinary taxes on income, profits and capital gains (1112E2) | Y4: Extraordinary taxes on income, profits and capital gains (1112E2) | AA4: Oil | AC4: Exploration | AE4: State government
A5: Aland Islands | B5: AX | C5: ALA | D5: 248 | E5: EUR | F5: 978 | G5: Euro | I5: Partially | K5: Yes, through EITI reporting | N5: 2503 | O5: Sulphur of all kinds (2503) | P5: Sulphur of all kinds (2503), volume | S5: Taxes on payroll and workforce (112E) | T5: Taxes on payroll and workforce | U5: 112E | V5: Taxes (11E) | W5: Taxes on payroll and workforce (112E) | X5: Taxes on payroll and workforce (112E) | Y5: Taxes on payroll and workforce (112E) | AA5: Gas | AC5: Production | AE5: Local government
A6: Albania | B6: AL | C6: ALB | D6: 8 | E6: ALL | F6: 8 | G6: Albanian lek | I6: No | K6: Not applicable | N6: 2504 | O6: Natural graphite (2504) | P6: Natural graphite (2504), volume | S6: Taxes on property (113E) | T6: Taxes on property | U6: 113E | V6: Taxes (11E) | W6: Taxes on property (113E) | X6: Taxes on property (113E) | Y6: Taxes on property (113E) | AA6: Mining | AC6: Development | AE6: State-owned enterprises & public corporations
A7: Algeria | B7: DZ | C7: DZA | D7: 12 | E7: DZD | F7: 12 | G7: Algerian dinar | I7: Not applicable | K7: Not available | N7: 2505 | O7: Natural sands (2505) | P7: Natural sands (2505), volume | S7: General taxes on goods and services (VAT, sales tax, turnover tax) (1141E) | T7: General taxes on goods and services (VAT, sales tax, turnover tax) | U7: 1141E | V7: Taxes (11E) | W7: Taxes on goods and services (114E) | X7: General taxes on goods and services (VAT, sales tax, turnover tax) (1141E) | Y7: General taxes on goods and services (VAT, sales tax, turnover tax) (1141E) | AA7: Not applicable | AC7: Other | AE7: Other
A8: American Samoa | B8: AS | C8: ASM | D8: 16 | E8: USD | F8: 840 | G8: United States dollar | N8: 2506 | O8: Quartz (2506) | P8: Quartz (2506), volume | S8: Excise taxes (1142E) | T8: Excise taxes | U8: 1142E | V8: Taxes (11E) | W8: Taxes on goods and services (114E) | X8: Excise taxes (1142E) | Y8: Excise taxes (1142E) | AA8: Oil & Gas | AC8: Not applicable
A9: Andorra | B9: AD | C9: AND | D9: 20 | E9: EUR | F9: 978 | G9: Euro | I9: Table 4 - Currency code list | N9: 2507 | O9: Kaolin (2507) | P9: Kaolin (2507), volume | S9: Licence fees (114521E) | T9: Licence fees | U9: 114521E | V9: Taxes (11E) | W9: Taxes on goods and services (114E) | X9: Taxes on use of goods/permission to use goods or perform activities (1145E) | Y9: Licence fees (114521E) | AA9: Other
A10: Angola | B10: AO | C10: AGO | D10: 24 | E10: AOA | F10: 973 | G10: Angolan kwanza | I10: Currency code (ISO-4217) | J10: Currency code num (ISO-4217) | K10: Currency | N10: 2508 | O10: Other clays (2508) | P10: Other clays (2508), volume | S10: Emission and pollution taxes (114522E) | T10: Emission and pollution taxes | U10: 114522E | V10: Taxes (11E) | W10: Taxes on goods and services (114E) | X10: Taxes on use of goods/permission to use goods or perform activities (1145E) | Y10: Emission and pollution taxes (114522E)
A11: Anguilla | B11: AI | C11: AIA | D11: 660 | E11: XCD | F11: 951 | G11: East Caribbean dollar | I11: AED | J11: 784 | K11: United Arab Emirates dirham | N11: 2509 | O11: Chalk (2509) | P11: Chalk (2509), volume | S11: Motor vehicle taxes (11451E) | T11: Motor vehicle taxes | U11: 11451E | V11: Taxes (11E) | W11: Taxes on goods and services (114E) | X11: Taxes on use of goods/permission to use goods or perform activities (1145E) | Y11: Motor vehicle taxes (11451E)
A12: Antigua and Barbuda | B12: AG | C12: ATG | D12: 28 | E12: XCD | F12: 951 | G12: East Caribbean dollar | I12: AFN | J12: 971 | K12: Afghan afghani | N12: 2510 | O12: Natural calcium phosphates (2510) | P12: Natural calcium phosphates (2510), volume | S12: Customs and other import duties (1151E) | T12: Customs and other import duties | U12: 1151E | V12: Taxes (11E) | W12: Taxes on international trade and transactions (115E) | X12: Customs and other import duties (1151E) | Y12: Customs and other import duties (1151E)
A13: Argentina | B13: AR | C13: ARG | D13: 32 | E13: ARS | F13: 32 | G13: Argentine peso | I13: ALL | J13: 8 | K13: Albanian lek | N13: 2511 | O13: Natural barium sulphate (2511) | P13: Natural barium sulphate (2511), volume | S13: Taxes on exports (1152E) | T13: Taxes on exports | U13: 1152E | V13: Taxes (11E) | W13: Taxes on international trade and transactions (115E) | X13: Taxes on exports (1152E) | Y13: Taxes on exports (1152E)
A14: Armenia | B14: AM | C14: ARM | D14: 51 | E14: AMD | F14: 51 | G14: Armenian dram | I14: AMD | J14: 51 | K14: Armenian dram | N14: 2512 | O14: Siliceous fossil meals (2512) | P14: Siliceous fossil meals (2512), volume | S14: Profits of natural resource export monopolies (1153E1) | T14: Profits of natural resource export monopolies | U14: 1153E1 | V14: Taxes (11E) | W14: Taxes on international trade and transactions (115E) | X14: Profits of natural resource export monopolies (1153E1) | Y14: Profits of natural resource export monopolies (1153E1)
A15: Aruba | B15: AW | C15: ABW | D15: 533 | E15: AWG | F15: 533 | G15: Aruban florin | I15: ANG | J15: 532 | K15: Netherlands Antillean guilder | N15: 2513 | O15: Pumice stone (2513) | P15: Pumice stone (2513), volume | S15: Other taxes payable by natural resource companies (116E) | T15: Other taxes payable by natural resource companies | U15: 116E | V15: Taxes (11E) | W15: Other taxes payable by natural resource companies (116E) | X15: Other taxes payable by natural resource companies (116E) | Y15: Other taxes payable by natural resource companies (116E)
A16: Australia | B16: AU | C16: AUS | D16: 36 | E16: AUD | F16: 36 | G16: Australian dollar | I16: AOA | J16: 973 | K16: Angolan kwanza | N16: 2514 | O16: Slate (2514) | P16: Slate (2514), volume | S16: Social security employer contributions (1212E) | T16: Social security employer contributions | U16: 1212E | V16: Social contributions (12E) | W16: Social security employer contributions (1212E) | X16: Social security employer contributions (1212E) | Y16: Social security employer contributions (1212E)
A17: Austria | B17: AT | C17: AUT | D17: 40 | E17: EUR | F17: 978 | G17: Euro | I17: ARS | J17: 32 | K17: Argentine peso | N17: 2515 | O17: Marble (2515) | P17: Marble (2515), volume | S17: From state-owned enterprises (1412E1) | T17: From state-owned enterprises | U17: 1412E1 | V17: Other revenue (14E) | W17: Property income (141E) | X17: Dividends (1412E) | Y17: From state-owned enterprises (1412E1)
A18: Azerbaijan | B18: AZ | C18: AZE | D18: 31 | E18: AZN | F18: 944 | G18: Azerbaijani manat | I18: AUD | J18: 36 | K18: Australian dollar | N18: 2516 | O18: Granite (2516) | P18: Granite (2516), volume | S18: From government participation (equity) (1412E2) | T18: From government participation (equity) | U18: 1412E2 | V18: Other revenue (14E) | W18: Property income (141E) | X18: Dividends (1412E) | Y18: From government participation (equity) (1412E2)
A19: Bahamas | B19: BS | C19: BHS | D19: 44 | E19: BSD | F19: 44 | G19: Bahamian dollar | I19: AWG | J19: 533 | K19: Aruban florin | N19: 2517 | O19: Pebbles (2517) | P19: Pebbles (2517), volume | S19: Withdrawals from income of quasi-corporations (1413E) | T19: Withdrawals from income of quasi-corporations | U19: 1413E | V19: Other revenue (14E) | W19: Property income (141E) | X19: Withdrawals from income of quasi-corporations (1413E) | Y19: Withdrawals from income of quasi-corporations (1413E)
A20: Bahrain | B20: BH | C20: BHR | D20: 48 | E20: BHD | F20: 48 | G20: Bahraini dinar | I20: AZN | J20: 944 | K20: Azerbaijani manat | N20: 2518 | O20: Dolomite (2518) | P20: Dolomite (2518), volume | S20: Royalties (1415E1) | T20: Royalties | U20: 1415E1 | V20: Other revenue (14E) | W20: Property income (141E) | X20: Rent (1415E) | Y20: Royalties (1415E1)
A21: Bangladesh | B21: BD | C21: BGD | D21: 50 | E21: BDT | F21: 50 | G21: Bangladeshi taka | I21: BAM | J21: 977 | K21: Bosnia and Herzegovina convertible mark | N21: 2519 | O21: Natural magnesium carbonate (2519) | P21: Natural magnesium carbonate (2519), volume | S21: Bonuses (1415E2) | T21: Bonuses | U21: 1415E2 | V21: Other revenue (14E) | W21: Property income (141E) | X21: Rent (1415E) | Y21: Bonuses (1415E2)
A22: Barbados | B22: BB | C22: BRB | D22: 52 | E22: BBD | F22: 52 | G22: Barbadian dollar | I22: BBD | J22: 52 | K22: Barbadian dollar | N22: 2520 | O22: Gypsum (2520) | P22: Gypsum (2520), volume | S22: Delivered/paid directly to government (1415E31) | T22: Delivered/paid directly to government | U22: 1415E31 | V22: Other revenue (14E) | W22: Property income (141E) | X22: Rent (1415E) | Y22: Production entitlements (in-kind or cash) (1415E3)
A23: Belarus | B23: BY | C23: BLR | D23: 112 | E23: BYR | F23: 974 | G23: Belarussian ruble | I23: BDT | J23: 50 | K23: Bangladeshi taka | N23: 2521 | O23: Limestone (2521) | P23: Limestone (2521), volume | S23: Delivered/paid to state-owned enterprise(s) (1415E32) | T23: Delivered/paid to state-owned enterprise(s) | U23: 1415E32 | V23: Other revenue (14E) | W23: Property income (141E) | X23: Rent (1415E) | Y23: Production entitlements (in-kind or cash) (1415E3)
A24: Belgium | B24: BE | C24: BEL | D24: 56 | E24: EUR | F24: 978 | G24: Euro | I24: BGN | J24: 975 | K24: Bulgarian lev (old) | N24: 2522 | O24: Quicklime (2522) | P24: Quicklime (2522), volume | S24: Compulsory transfers to government (infrastructure and other) (1415E4) | T24: Compulsory transfers to government (infrastructure and other) | U24: 1415E4 | V24: Other revenue (14E) | W24: Property income (141E) | X24: Rent (1415E) | Y24: Compulsory transfers to government (infrastructure and other) (1415E4)
A25: Belize | B25: BZ | C25: BLZ | D25: 84 | E25: BZD | F25: 84 | G25: Belize dollar | I25: BHD | J25: 48 | K25: Bahraini dinar | N25: 2523 | O25: Portland cement (2523) | P25: Portland cement (2523), volume | S25: Other rent payments (1415E5) | T25: Other rent payments | U25: 1415E5 | V25: Other revenue (14E) | W25: Property income (141E) | X25: Rent (1415E) | Y25: Other rent payments (1415E5)
A26: Benin | B26: BJ | C26: BEN | D26: 204 | E26: XOF | F26: 952 | G26: West African CFA franc | I26: BIF | J26: 108 | K26: Burundian franc | N26: 2524 | O26: Asbestos (2524) | P26: Asbestos (2524), volume | S26: Sales of goods and services by government units (1421E) | T26: Sales of goods and services by government units | U26: 1421E | V26: Other revenue (14E) | W26: Sales of goods and services (142E) | X26: Sales of goods and services by government units (1421E) | Y26: Sales of goods and services by government units (1421E)
A27: Bermuda | B27: BM | C27: BMU | D27: 60 | E27: BMD | F27: 60 | G27: Bermudian dollar | I27: BMD | J27: 60 | K27: Bermudian dollar | N27: 2525 | O27: Mica (2525) | P27: Mica (2525), volume | S27: Administrative fees for government services (1422E) | T27: Administrative fees for government services | U27: 1422E | V27: Other revenue (14E) | W27: Sales of goods and services (142E) | X27: Administrative fees for government services (1422E) | Y27: Administrative fees for government services (1422E)
A28: Bhutan | B28: BT | C28: BTN | D28: 64 | E28: BTN | F28: 64 | G28: Bhutanese ngultrum | I28: BND | J28: 96 | K28: Brunei dollar | N28: 2526 | O28: Natural steatite (2526) | P28: Natural steatite (2526), volume | S28: Fines, penalties, and forfeits (143E) | T28: Fines, penalties, and forfeits | U28: 143E | V28: Other revenue (14E) | W28: Fines, penalties, and forfeits (143E) | X28: Fines, penalties, and forfeits (143E) | Y28: Fines, penalties, and forfeits (143E)
A29: Bolivia | B29: BO | C29: BOL | D29: 68 | E29: BOB | F29: 68 | G29: Bolivian boliviano | I29: BOB | J29: 68 | K29: Bolivian boliviano | N29: 2527 | O29: Natural cryolite (2527) | P29: Natural cryolite (2527), volume | S29: Voluntary transfers to government (donations) (144E1) | T29: Voluntary transfers to government (donations) | U29: 144E1 | V29: Other revenue (14E) | W29: Voluntary transfers to government (donations) (144E1) | X29: Voluntary transfers to government (donations) (144E1) | Y29: Voluntary transfers to government (donations) (144E1)
A30: Bosnia and Herzegovina | B30: BA | C30: BIH | D30: 70 | E30: BAM | F30: 977 | G30: Bosnia and Herzegovina convertible mark | I30: BRL | J30: 986 | K30: Brazilian real | N30: 2528 | O30: Natural borates and concentrates (2528) | P30: Natural borates and concentrates (2528), volume | S30: <Choose from menu> | T30: <Choose from menu> | U30: <Choose from menu> | V30: <Choose from menu> | W30: <Choose from menu> | X30: <Choose from menu> | Y30: <Choose from menu>
A31: Botswana | B31: BW | C31: BWA | D31: 72 | E31: BWP | F31: 72 | G31: Botswana pula | I31: BSD | J31: 44 | K31: Bahamian dollar | N31: 2529 | O31: Felspar (2529) | P31: Felspar (2529), volume
A32: Brazil | B32: BR | C32: BRA | D32: 76 | E32: BRL | F32: 986 | G32: Brazilian real | I32: BTN | J32: 64 | K32: Bhutanese ngultrum | N32: 2530 | O32: Mineral substances not elsewhere specified (2530) | P32: Mineral substances not elsewhere specified (2530), volume
A33: British Indian Ocean Territory | B33: IO | C33: IOT | D33: 86 | E33: USD | F33: 840 | G33: United States dollar | I33: BWP | J33: 72 | K33: Botswana pula | N33: 2601 | O33: Iron (2601) | P33: Iron (2601), volume
A34: British Virgin Islands | B34: VG | C34: VGB | D34: 92 | E34: USD | F34: 840 | G34: United States dollar | I34: BYR | J34: 974 | K34: Belarussian ruble | N34: 2602 | O34: Manganese (2602) | P34: Manganese (2602), volume
A35: Brunei Darussalam | B35: BN | C35: BRN | D35: 96 | E35: BND | F35: 96 | G35: Brunei dollar | I35: BZD | J35: 84 | K35: Belize dollar | N35: 2603 | O35: Copper (2603) | P35: Copper (2603), volume
A36: Bulgaria | B36: BG | C36: BGR | D36: 100 | E36: BGN | F36: 975 | G36: Bulgarian lev (old) | I36: CAD | J36: 124 | K36: Canadian dollar | N36: 2604 | O36: Nickel (2604) | P36: Nickel (2604), volume
A37: Burkina Faso | B37: BF | C37: BFA | D37: 854 | E37: XOF | F37: 952 | G37: West African CFA franc | I37: CDF | J37: 976 | K37: Congolese franc | N37: 2605 | O37: Cobalt (2605) | P37: Cobalt (2605), volume
A38: Burundi | B38: BI | C38: BDI | D38: 108 | E38: BIF | F38: 108 | G38: Burundian franc | I38: CHF | J38: 756 | K38: Swiss franc | N38: 2606 | O38: Aluminium (2606) | P38: Aluminium (2606), volume
A39: Cambodia | B39: KH | C39: KHM | D39: 116 | E39: KHR | F39: 116 | G39: Cambodian Riel | I39: CLF | J39: 990 | K39: Chilean Unidad de Fomento | N39: 2607 | O39: Lead (2607) | P39: Lead (2607), volume
A40: Cameroon | B40: CM | C40: CMR | D40: 120 | E40: XAF | F40: 950 | G40: Central African CFA franc | I40: CNH | J40: 0 | K40: Chinese yuan renminbi (offshore) | N40: 2608 | O40: Zinc (2608) | P40: Zinc (2608), volume
A41: Canada | B41: CA | C41: CAN | D41: 124 | E41: CAD | F41: 124 | G41: Canadian dollar | I41: COP | J41: 170 | K41: Colombian peso | N41: 2609 | O41: Tin (2609) | P41: Tin (2609), volume
A42: Cape Verde | B42: CV | C42: CPV | D42: 132 | E42: CVE | F42: 132 | G42: Cape Verdean escudo | I42: CRC | J42: 188 | K42: Costa Rican colon | N42: 2610 | O42: Chromium (2610) | P42: Chromium (2610), volume
A43: Cayman Islands | B43: KY | C43: CYM | D43: 136 | E43: KYD | F43: 136 | G43: Cayman Islands Dollar | I43: CUC | J43: 931 | K43: Cuban peso convertible | N43: 2611 | O43: Tungsten (2611) | P43: Tungsten (2611), volume
A44: Central African Republic | B44: CF | C44: CAF | D44: 140 | E44: XAF | F44: 950 | G44: Central African CFA franc | I44: CVE | J44: 132 | K44: Cape Verdean escudo | N44: 2612 | O44: Uranium or thorium (2612) | P44: Uranium or thorium (2612), volume
A45: Chad | B45: TD | C45: TCD | D45: 148 | E45: XAF | F45: 950 | G45: Central African CFA franc | I45: CZK | J45: 203 | K45: Czech koruna | N45: 2613 | O45: Molybdenum (2613) | P45: Molybdenum (2613), volume
A46: Chile | B46: CL | C46: CHL | D46: 152 | E46: CLF | F46: 990 | G46: Chilean Unidad de Fomento | I46: DJF | J46: 262 | K46: Djiboutian franc | N46: 2614 | O46: Titanium (2614) | P46: Titanium (2614), volume
A47: China | B47: CN | C47: CHN | D47: 156 | E47: CNH | F47: 0 | G47: Chinese yuan renminbi (offshore) | I47: DKK | J47: 208 | K47: Danish krone | N47: 2615 | O47: Niobium, Vanadium, Zirconium (2615) | P47: Niobium (2615), volume
A48: Christmas Island | B48: CX | C48: CXR | D48: 162 | E48: AUD | F48: 36 | G48: Australian dollar | I48: DOP | J48: 214 | K48: Dominican peso | N48: 2616 | O48: Precious metals (2616) | P48: Precious metals (2616), volume
A49: Cocos (Keeling) Islands | B49: CC | C49: CCK | D49: 166 | E49: AUD | F49: 36 | G49: Australian dollar | I49: DZD | J49: 12 | K49: Algerian dinar | N49: 2617 | O49: Other (2617) | P49: Other (2617), volume
A50: Colombia | B50: CO | C50: COL | D50: 170 | E50: COP | F50: 170 | G50: Colombian peso | I50: EGP | J50: 818 | K50: Egyptian pound | N50: 2618 | O50: Granulated slag (2618) | P50: Granulated slag (2618), volume
A51: Comoros | B51: KM | C51: COM | D51: 174 | E51: KMF | F51: 174 | G51: Comorian Franc | I51: ERN | J51: 232 | K51: Eritrean nakfa | N51: 2619 | O51: Slag (2619) | P51: Slag (2619), volume
A52: Costa Rica | B52: CR | C52: CRI | D52: 188 | E52: CRC | F52: 188 | G52: Costa Rican colon | I52: ETB | J52: 230 | K52: Ethiopian birr | N52: 2620 | O52: Ash and residues (2620) | P52: Ash and residues (2620), volume
A53: Cote d'Ivoire | B53: CI | C53: CIV | D53: 384 | E53: XOF | F53: 952 | G53: West African CFA franc | I53: EUR | J53: 978 | K53: Euro | N53: 2621 | O53: Other slag and ash (2621) | P53: Other slag and ash (2621), volume
A54: Croatia | B54: HR | C54: HRV | D54: 191 | E54: HRK | F54: 191 | G54: Croatian Kuna | I54: FJD | J54: 242 | K54: Fijian dollar | N54: 2701 | O54: Coal (2701) | P54: Coal (2701), volume
A55: Cuba | B55: CU | C55: CUB | D55: 192 | E55: CUC | F55: 931 | G55: Cuban peso convertible | I55: FKP | J55: 238 | K55: Falkland Islands pound | N55: 2702 | O55: Lignite (2702) | P55: Lignite (2702), volume
A56: Cyprus | B56: CY | C56: CYP | D56: 196 | E56: EUR | F56: 978 | G56: Euro | I56: GBP | J56: 826 | K56: Pound sterling | N56: 2703 | O56: Peat (2703) | P56: Peat (2703), volume
A57: Czech Republic | B57: CZ | C57: CZE | D57: 203 | E57: CZK | F57: 203 | G57: Czech koruna | I57: GEL | J57: 981 | K57: Georgian lari | N57: 2704 | O57: Coke and semi-coke (2704) | P57: Coke and semi-coke (2704), volume
A58: Democratic Republic of Congo | B58: CD | C58: COD | D58: 180 | E58: CDF | F58: 976 | G58: Congolese franc | I58: GGP | J58: 0 | K58: Pound | N58: 2705 | O58: Coal gas (2705) | P58: Coal gas (2705), volume
A59: Denmark | B59: DK | C59: DNK | D59: 208 | E59: DKK | F59: 208 | G59: Danish krone | I59: GHS | J59: 936 | K59: Ghanaian cedi | N59: 2706 | O59: Tar distilled from coal (2706) | P59: Tar distilled from coal (2706), volume
A60: Djibouti | B60: DJ | C60: DJI | D60: 262 | E60: DJF | F60: 262 | G60: Djiboutian franc | I60: GIP | J60: 292 | K60: Gibraltar pound | N60: 2707 | O60: Products of the distillation of coal tar (2707) | P60: Products of the distillation of coal tar (2707), volume
A61: Dominica | B61: DM | C61: DMA | D61: 212 | E61: XCD | F61: 951 | G61: East Caribbean dollar | I61: GMD | J61: 270 | K61: Gambian dalasi | N61: 2708 | O61: Pitch and pitch coke (2708) | P61: Pitch and pitch coke (2708), volume
A62: Dominican Republic | B62: DO | C62: DOM | D62: 214 | E62: DOP | F62: 214 | G62: Dominican peso | I62: GNF | J62: 324 | K62: Guinean franc | N62: 2709 | O62: Crude oil (2709) | P62: Crude oil (2709), volume
A63: Ecuador | B63: EC | C63: ECU | D63: 218 | E63: USD | F63: 840 | G63: United States dollar | I63: GTQ | J63: 320 | K63: Guatemalan quetzal | N63: 2710 | O63: Petroleum oils excluding crude (2710) | P63: Petroleum oils excluding crude (2710), volume
A64: Egypt | B64: EG | C64: EGY | D64: 818 | E64: EGP | F64: 818 | G64: Egyptian pound | I64: GYD | J64: 328 | K64: Guyanese Dollar | N64: 2711 | O64: Natural gas (2711) | P64: Natural gas (2711), volume
A65: El Salvador | B65: SV | C65: SLV | D65: 222 | E65: USD | F65: 840 | G65: United States dollar | I65: HKD | J65: 344 | K65: Hong Kong Dollar | N65: 2712 | O65: Petroleum jelly (2712) | P65: Petroleum jelly (2712), volume
A66: Equatorial Guinea | B66: GQ | C66: GNQ | D66: 226 | E66: XAF | F66: 950 | G66: Central African CFA franc | I66: HNL | J66: 340 | K66: Honduran Lempira | N66: 2713 | O66: Petroleum coke (2713) | P66: Petroleum coke (2713), volume
A67: Eritrea | B67: ER | C67: ERI | D67: 232 | E67: ERN | F67: 232 | G67: Eritrean nakfa | I67: HRK | J67: 191 | K67: Croatian Kuna | N67: 2714 | O67: Bitumen and asphalt (2714) | P67: Bitumen and asphalt (2714), volume
A68: Estonia | B68: EE | C68: EST | D68: 233 | E68: EUR | F68: 978 | G68: Euro | I68: HTG | J68: 332 | K68: Haitian Gourde | N68: 2715 | O68: Bituminous mixtures (2715) | P68: Bituminous mixtures (2715), volume
A69: Eswatini | B69: SZ | C69: SWZ | D69: 748 | E69: SZL | F69: 748 | G69: Swazi Lilangeni | I69: HUF | J69: 348 | K69: Hungarian Forint | N69: 2716 | O69: Electrical energy (2716) | P69: Electrical energy (2716), volume
A70: Ethiopia | B70: ET | C70: ETH | D70: 231 | E70: ETB | F70: 230 | G70: Ethiopian birr | I70: IDR | J70: 360 | K70: Indonesian Rupiah | N70: 7102 | O70: Diamonds (7102) | P70: Diamonds (7102), volume
A71: Falkland Islands | B71: FK | C71: FLK | D71: 238 | E71: FKP | F71: 238 | G71: Falkland Islands pound | I71: ILS | J71: 376 | K71: Israeli New Shekel | N71: 7106 | O71: Silver (7106) | P71: Silver (7106), volume
A72: Faroe Islands | B72: FO | C72: FRO | D72: 234 | E72: DKK | F72: 208 | G72: Danish krone | I72: IMP | J72: 0 | K72: Isle of Man Pound | N72: 7108 | O72: Gold (7108) | P72: Gold (7108), volume
A73: Fiji | B73: FJ | C73: FJI | D73: 242 | E73: FJD | F73: 242 | G73: Fijian dollar | I73: INR | J73: 356 | K73: Indian Rupee | N73: 7103 | O73: Precious stones (other than diamonds) (7103) | P73: Precious stones (other than diamonds) (7103), volume
A74: Finland | B74: FI | C74: FIN | D74: 246 | E74: EUR | F74: 978 | G74: Euro | I74: IQD | J74: 368 | K74: Iraqi dinar
A75: France | B75: FR | C75: FRA | D75: 250 | E75: EUR | F75: 978 | G75: Euro | I75: IRR | J75: 364 | K75: Iranian Rial
A76: French Guiana | B76: GF | C76: GUF | D76: 254 | E76: EUR | F76: 978 | G76: Euro | I76: ISK | J76: 352 | K76: Icelandic króna
A77: French Polynesia | B77: PF | C77: PYF | D77: 258 | E77: EUR | F77: 978 | G77: Euro | I77: JEP | J77: 0 | K77: Jersey Pound
A78: French Southern Territories | B78: TF | C78: ATF | D78: 260 | E78: EUR | F78: 978 | G78: Euro | I78: JMD | J78: 388 | K78: Jamaican Dollar
A79: Gabon | B79: GA | C79: GAB | D79: 266 | E79: XAF | F79: 950 | G79: Central African CFA franc | I79: JOD | J79: 400 | K79: Jordanian Dinar
A80: Gambia | B80: GM | C80: GMB | D80: 270 | E80: GMD | F80: 270 | G80: Gambian dalasi | I80: JPY | J80: 392 | K80: Japanese Yen
A81: Georgia | B81: GE | C81: GEO | D81: 268 | E81: GEL | F81: 981 | G81: Georgian lari | I81: KES | J81: 404 | K81: Kenyan Shilling
A82: Germany | B82: DE | C82: DEU | D82: 276 | E82: EUR | F82: 978 | G82: Euro | I82: KGS | J82: 417 | K82: Kyrgyzstani Som
A83: Ghana | B83: GH | C83: GHA | D83: 288 | E83: GHS | F83: 936 | G83: Ghanaian cedi | I83: KHR | J83: 116 | K83: Cambodian Riel
A84: Gibraltar | B84: GI | C84: GIB | D84: 292 | E84: GIP | F84: 292 | G84: Gibraltar pound | I84: KMF | J84: 174 | K84: Comorian Franc
A85: Greece | B85: GR | C85: GRC | D85: 300 | E85: EUR | F85: 978 | G85: Euro | I85: KPW | J85: 408 | K85: North Korean Won
A86: Greenland | B86: GL | C86: GRL | D86: 304 | E86: DKK | F86: 208 | G86: Danish krone | I86: KRW | J86: 410 | K86: South Korean Won
A87: Grenada | B87: GD | C87: GRD | D87: 308 | E87: XCD | F87: 951 | G87: East Caribbean dollar | I87: KWD | J87: 414 | K87: Kuwaiti Dinar
A88: Guadeloupe | B88: GP | C88: GLP | D88: 312 | E88: EUR | F88: 978 | G88: Euro | I88: KYD | J88: 136 | K88: Cayman Islands Dollar
A89: Guam | B89: GU | C89: GUM | D89: 316 | E89: USD | F89: 840 | G89: United States dollar | I89: KZT | J89: 398 | K89: Kazakhstani Tenge
A90: Guatemala | B90: GT | C90: GTM | D90: 320 | E90: GTQ | F90: 320 | G90: Guatemalan quetzal | I90: LAK | J90: 418 | K90: Lao Kip
A91: Guernsey | B91: GG | C91: GGY | D91: 831 | E91: GGP | F91: 0 | G91: Pound | I91: LBP | J91: 422 | K91: Lebanese Pound
A92: Guinea | B92: GN | C92: GIN | D92: 324 | E92: GNF | F92: 324 | G92: Guinean franc | I92: LKR | J92: 144 | K92: Sri Lankan Rupee
A93: Guinea-Bissau | B93: GW | C93: GNB | D93: 624 | E93: XOF | F93: 952 | G93: West African CFA franc | I93: LRD | J93: 430 | K93: Liberian Dollar
A94: Guyana | B94: GY | C94: GUY | D94: 328 | E94: GYD | F94: 328 | G94: Guyanese Dollar | I94: LSL | J94: 426 | K94: Lesotho loti
A95: Haiti | B95: HT | C95: HTI | D95: 332 | E95: HTG | F95: 332 | G95: Haitian Gourde | I95: LYD | J95: 434 | K95: Libyan Dinar
A96: Heard and Mcdonald Islands | B96: HM | C96: HMD | D96: 334 | I96: MAD | J96: 504 | K96: Moroccan Dirham
A97: Honduras | B97: HN | C97: HND | D97: 340 | E97: HNL | F97: 340 | G97: Honduran Lempira | I97: MDL | J97: 498 | K97: Moldovan Leu
A98: Hong Kong | B98: HK | C98: HKG | D98: 344 | E98: HKD | F98: 344 | G98: Hong Kong Dollar | I98: MGA | J98: 969 | K98: Malagasy Ariary
A99: Hungary | B99: HU | C99: HUN | D99: 348 | E99: HUF | F99: 348 | G99: Hungarian Forint | I99: MKD | J99: 807 | K99: Macedonian denar
A100: Iceland | B100: IS | C100: ISL | D100: 352 | E100: ISK | F100: 352 | G100: Icelandic króna | I100: MMK | J100: 104 | K100: Burmese Kyat
A101: India | B101: IN | C101: IND | D101: 356 | E101: INR | F101: 356 | G101: Indian Rupee | I101: MNT | J101: 496 | K101: Mongolian Tugrik
A102: Indonesia | B102: ID | C102: IDN | D102: 360 | E102: IDR | F102: 360 | G102: Indonesian Rupiah | I102: MOP | J102: 446 | K102: Macanese patca
A103: Iran | B103: IR | C103: IRN | D103: 364 | E103: IRR | F103: 364 | G103: Iranian Rial | I103: MRO | J103: 478 | K103: Mauritanian Ouguiya
A104: Iraq | B104: IQ | C104: IRQ | D104: 368 | E104: IQD | F104: 368 | G104: Iraqi dinar | I104: MUR | J104: 480 | K104: Mauritian Rupee
A105: Ireland | B105: IE | C105: IRL | D105: 372 | E105: EUR | F105: 978 | G105: Euro | I105: MVR | J105: 462 | K105: Maldivian Rufiyaa
A106: Isle of Man | B106: IM | C106: IMN | D106: 833 | E106: IMP | F106: 0 | G106: Isle of Man Pound | I106: MWK | J106: 454 | K106: Malawian kwacha
A107: Israel | B107: IL | C107: ISR | D107: 376 | E107: ILS | F107: 376 | G107: Israeli New Shekel | I107: MXN | J107: 484 | K107: Mexican Peso
A108: Italy | B108: IT | C108: ITA | D108: 380 | E108: EUR | F108: 978 | G108: Euro | I108: MYR | J108: 458 | K108: Malaysian Ringgit
A109: Jamaica | B109: JM | C109: JAM | D109: 388 | E109: JMD | F109: 388 | G109: Jamaican Dollar | I109: MZN | J109: 943 | K109: Mozambique Metical
A110: Japan | B110: JP | C110: JPN | D110: 392 | E110: JPY | F110: 392 | G110: Japanese Yen | I110: NAD | J110: 516 | K110: Namibian Dollar
A111: Jersey | B111: JE | C111: JEY | D111: 832 | E111: JEP | F111: 0 | G111: Jersey Pound | I111: NGN | J111: 566 | K111: Nigerian Naira
A112: Jordan | B112: JO | C112: JOR | D112: 400 | E112: JOD | F112: 400 | G112: Jordanian Dinar | I112: NIO | J112: 558 | K112: Nicaraguan córdoba oro
A113: Kazakhstan | B113: KZ | C113: KAZ | D113: 398 | E113: KZT | F113: 398 | G113: Kazakhstani Tenge | I113: NOK | J113: 578 | K113: Norwegian Krone
A114: Kenya | B114: KE | C114: KEN | D114: 404 | E114: KES | F114: 404 | G114: Kenyan Shilling | I114: NPR | J114: 524 | K114: Nepalese Rupee
A115: Kiribati | B115: KI | C115: KIR | D115: 296 | I115: NZD | J115: 554 | K115: New Zealand Dollar
A116: Korea (North) | B116: KP | C116: PRK | D116: 408 | E116: KPW | F116: 408 | G116: North Korean Won | I116: OMR | J116: 512 | K116: Omani Rial
A117: Korea (South) | B117: KR | C117: KOR | D117: 410 | E117: KRW | F117: 410 | G117: South Korean Won | I117: PAB | J117: 590 | K117: Panamanian balboa
A118: Kosovo | B118: XK | C118: XKX | D118: - | E118: EUR | F118: 978 | G118: Euro | I118: PEN | J118: 604 | K118: Peruvian Sol
A119: Kuwait | B119: KW | C119: KWT | D119: 414 | E119: KWD | F119: 414 | G119: Kuwaiti Dinar | I119: PGK | J119: 598 | K119: Papua New Guinean Kina
A120: Kyrgyz Republic | B120: KG | C120: KGZ | D120: 417 | E120: KGS | F120: 417 | G120: Kyrgyzstani Som | I120: PHP | J120: 608 | K120: Philippine Peso
A121: Lao PDR | B121: LA | C121: LAO | D121: 418 | E121: LAK | F121: 418 | G121: Lao Kip | I121: PKR | J121: 586 | K121: Pakistani Rupee
A122: Latvia | B122: LV | C122: LVA | D122: 428 | E122: EUR | F122: 978 | G122: Euro | I122: PLN | J122: 985 | K122: Polish Zloty
A123: Lebanon | B123: LB | C123: LBN | D123: 422 | E123: LBP | F123: 422 | G123: Lebanese Pound | I123: PYG | J123: 600 | K123: Paraguayan guaraní
A124: Lesotho | B124: LS | C124: LSO | D124: 426 | E124: LSL | F124: 426 | G124: Lesotho loti | I124: QAR | J124: 634 | K124: Qatari Riyal
A125: Liberia | B125: LR | C125: LBR | D125: 430 | E125: LRD | F125: 430 | G125: Liberian Dollar | I125: RON | J125: 946 | K125: Romanian Leu
A126: Libya | B126: LY | C126: LBY | D126: 434 | E126: LYD | F126: 434 | G126: Libyan Dinar | I126: RSD | J126: 941 | K126: Serbian Dinar
A127: Liechtenstein | B127: LI | C127: LIE | D127: 438 | E127: CHF | F127: 756 | G127: Swiss franc | I127: RUB | J127: 643 | K127: Russian Ruble
A128: Lithuania | B128: LT | C128: LTU | D128: 440 | E128: EUR | F128: 978 | G128: Euro | I128: RWF | J128: 646 | K128: Rwandan Franc
A129: Luxembourg | B129: LU | C129: LUX | D129: 442 | E129: EUR | F129: 978 | G129: Euro | I129: SAR | J129: 682 | K129: Saudi Riyal
A130: Macao | B130: MO | C130: MAC | D130: 446 | E130: MOP | F130: 446 | G130: Macanese patca | I130: SBD | J130: 90 | K130: Solomon Islands Dollar
A131: Macedonia | B131: MK | C131: MKD | D131: 807 | E131: MKD | F131: 807 | G131: Macedonian denar | I131: SCR | J131: 690 | K131: Seychellois rupee
A132: Madagascar | B132: MG | C132: MDG | D132: 450 | E132: MGA | F132: 969 | G132: Malagasy Ariary | I132: SDG | J132: 938 | K132: Sudanese Pound
A133: Malawi | B133: MW | C133: MWI | D133: 454 | E133: MWK | F133: 454 | G133: Malawian kwacha | I133: SEK | J133: 752 | K133: Swedish Krona
A134: Malaysia | B134: MY | C134: MYS | D134: 458 | E134: MYR | F134: 458 | G134: Malaysian Ringgit | I134: SGD | J134: 702 | K134: Singapore Dollar
A135: Maldives | B135: MV | C135: MDV | D135: 462 | E135: MVR | F135: 462 | G135: Maldivian Rufiyaa | I135: SHP | J135: 654 | K135: Saint Helena Pound
A136: Mali | B136: ML | C136: MLI | D136: 466 | E136: XOF | F136: 952 | G136: West African CFA franc | I136: SLL | J136: 694 | K136: Sierra Leonean leone
A137: Malta | B137: MT | C137: MLT | D137: 470 | E137: EUR | F137: 978 | G137: Euro | I137: SOS | J137: 706 | K137: Somali Shilling
A138: Marshall Islands | B138: MH | C138: MHL | D138: 584 | E138: USD | F138: 840 | G138: United States dollar | I138: SRD | J138: 968 | K138: Surinamese dollar
A139: Martinique | B139: MQ | C139: MTQ | D139: 474 | E139: EUR | F139: 978 | G139: Euro | I139: SSP | J139: 728 | K139: South Sudanese Pound
A140: Mauritania | B140: MR | C140: MRT | D140: 478 | E140: MRO | F140: 478 | G140: Mauritanian Ouguiya | I140: STD | J140: 678 | K140: São Tomé and Príncipe Dobra
A141: Mauritius | B141: MU | C141: MUS | D141: 480 | E141: MUR | F141: 480 | G141: Mauritian Rupee | I141: SYP | J141: 760 | K141: Syrian Pound
A142: Mayotte | B142: YT | C142: MYT | D142: 175 | E142: EUR | F142: 978 | G142: Euro | I142: SZL | J142: 748 | K142: Swazi Lilangeni
A143: Mexico | B143: MX | C143: MEX | D143: 484 | E143: MXN | F143: 484 | G143: Mexican Peso | I143: THB | J143: 764 | K143: Thai Baht
A144: Micronesia | B144: FM | C144: FSM | D144: 583 | E144: USD | F144: 840 | G144: United States dollar | I144: TJS | J144: 972 | K144: Tajikistani Somoni
A145: Moldova | B145: MD | C145: MDA | D145: 498 | E145: MDL | F145: 498 | G145: Moldovan Leu | I145: TMT | J145: 934 | K145: Turkmenistan New Manat
A146: Monaco | B146: MC | C146: MCO | D146: 492 | E146: EUR | F146: 978 | G146: Euro | I146: TND | J146: 788 | K146: Tunisian dinar
A147: Mongolia | B147: MN | C147: MNG | D147: 496 | E147: MNT | F147: 496 | G147: Mongolian Tugrik | I147: TOP | J147: 776 | K147: Tongan pa'anga
A148: Montenegro | B148: ME | C148: MNE | D148: 499 | E148: EUR | F148: 978 | G148: Euro | I148: TRY | J148: 949 | K148: Turkish lira
A149: Montserrat | B149: MS | C149: MSR | D149: 500 | E149: XCD | F149: 951 | G149: East Caribbean dollar | I149: TTD | J149: 780 | K149: Trinidad and Tobago Dollar
A150: Morocco | B150: MA | C150: MAR | D150: 504 | E150: MAD | F150: 504 | G150: Moroccan Dirham | I150: TVD | J150: 0 | K150: Tuvaluan dollar
A151: Mozambique | B151: MZ | C151: MOZ | D151: 508 | E151: MZN | F151: 943 | G151: Mozambique Metical | I151: TWD | J151: 901 | K151: New Taiwan dollar
A152: Myanmar | B152: MM | C152: MMR | D152: 104 | E152: MMK | F152: 104 | G152: Burmese Kyat | I152: TZS | J152: 834 | K152: Tanzanian shilling
A153: Namibia | B153: NA | C153: NAM | D153: 516 | E153: NAD | F153: 516 | G153: Namibian Dollar | I153: UAH | J153: 980 | K153: Ukrainian Hryvnia
A154: Nauru | B154: NR | C154: NRU | D154: 520 | I154: UGX | J154: 800 | K154: Ugandan shilling
A155: Nepal | B155: NP | C155: NPL | D155: 524 | E155: NPR | F155: 524 | G155: Nepalese Rupee | I155: USD | J155: 840 | K155: United States dollar
A156: Netherlands | B156: NL | C156: NLD | D156: 528 | E156: EUR | F156: 978 | G156: Euro | I156: USD
A157: Netherlands Antilles | B157: AN | C157: ANT | D157: 530 | E157: ANG | F157: 532 | G157: Netherlands Antillean guilder | I157: UYU | J157: 858 | K157: Uruguayan Peso
A158: New Caledonia | B158: NC | C158: NCL | D158: 540 | I158: UZS | J158: 860 | K158: Uzbekistani Som
A159: New Zealand | B159: NZ | C159: NZL | D159: 554 | E159: NZD | F159: 554 | G159: New Zealand Dollar | I159: VEF | J159: 937 | K159: Venezuelan Bolívar fuerte
A160: Nicaragua | B160: NI | C160: NIC | D160: 558 | E160: NIO | F160: 558 | G160: Nicaraguan córdoba oro | I160: VND | J160: 704 | K160: Vietnamese Dong
A161: Niger | B161: NE | C161: NER | D161: 562 | E161: XOF | F161: 952 | G161: West African CFA franc | I161: VUV | J161: 548 | K161: Vanuatu Vatu
A162: Nigeria | B162: NG | C162: NGA | D162: 566 | E162: NGN | F162: 566 | G162: Nigerian Naira | I162: WST | J162: 882 | K162: Samoan tala
A163: Niue | B163: NU | C163: NIU | D163: 570 | I163: XAF | J163: 950 | K163: Central African CFA franc
A164: Norfolk Island | B164: NF | C164: NFK | D164: 574 | I164: XCD | J164: 951 | K164: East Caribbean dollar
A165: Northern Mariana Islands | B165: MP | C165: MNP | D165: 580 | E165: USD | F165: 840 | G165: United States dollar | I165: XOF | J165: 952 | K165: West African CFA franc
A166: Norway | B166: NO | C166: NOR | D166: 578 | E166: NOK | F166: 578 | G166: Norwegian Krone | I166: YER | J166: 886 | K166: Yemeni Rial
A167: Oman | B167: OM | C167: OMN | D167: 512 | E167: OMR | F167: 512 | G167: Omani Rial | I167: ZAR | J167: 710 | K167: South African Rand
A168: Pakistan | B168: PK | C168: PAK | D168: 586 | E168: PKR | F168: 586 | G168: Pakistani Rupee | I168: ZMW | J168: 967 | K168: Zambian Kwacha
A169: Palau | B169: PW | C169: PLW | D169: 585 | E169: USD | F169: 840 | G169: United States dollar
A170: Palestinian Territory | B170: PS | C170: PSE | D170: 275
A171: Panama | B171: PA | C171: PAN | D171: 591 | E171: PAB | F171: 590 | G171: Panamanian balboa
A172: Papua New Guinea | B172: PG | C172: PNG | D172: 598 | E172: PGK | F172: 598 | G172: Papua New Guinean Kina
A173: Paraguay | B173: PY | C173: PRY | D173: 600 | E173: PYG | F173: 600 | G173: Paraguayan guaraní
A174: Peru | B174: PE | C174: PER | D174: 604 | E174: PEN | F174: 604 | G174: Peruvian Sol
A175: Philippines | B175: PH | C175: PHL | D175: 608 | E175: PHP | F175: 608 | G175: Philippine Peso
A176: Pitcairn | B176: PN | C176: PCN | D176: 612
A177: Poland | B177: PL | C177: POL | D177: 616 | E177: PLN | F177: 985 | G177: Polish Zloty
A178: Portugal | B178: PT | C178: PRT | D178: 620 | E178: EUR | F178: 978 | G178: Euro
A179: Puerto Rico | B179: PR | C179: PRI | D179: 630 | E179: USD | F179: 840 | G179: United States dollar
A180: Qatar | B180: QA | C180: QAT | D180: 634 | E180: QAR | F180: 634 | G180: Qatari Riyal
A181: Republic of the Congo | B181: CG | C181: COG | D181: 178 | E181: XAF | F181: 950 | G181: Central African CFA franc
A182: Reunion | B182: RE | C182: REU | D182: 638 | E182: EUR | F182: 978 | G182: Euro
A183: Romania | B183: RO | C183: ROU | D183: 642 | E183: RON | F183: 946 | G183: Romanian Leu
A184: Russian Federation | B184: RU | C184: RUS | D184: 643 | E184: RUB | F184: 643 | G184: Russian Ruble
A185: Rwanda | B185: RW | C185: RWA | D185: 646 | E185: RWF | F185: 646 | G185: Rwandan Franc
A186: Saint Helena | B186: SH | C186: SHN | D186: 654 | E186: SHP | F186: 654 | G186: Saint Helena Pound
A187: Saint Kitts and Nevis | B187: KN | C187: KNA | D187: 659 | E187: XCD | F187: 951 | G187: East Caribbean dollar
A188: Saint Lucia | B188: LC | C188: LCA | D188: 662 | E188: XCD | F188: 951 | G188: East Caribbean dollar
A189: Saint Pierre and Miquelon | B189: PM | C189: SPM | D189: 666 | E189: EUR | F189: 978 | G189: Euro
A190: Saint Vincent and Grenadines | B190: VC | C190: VCT | D190: 670 | E190: XCD | F190: 951 | G190: East Caribbean dollar
A191: Saint-Barthelemy | B191: BL | C191: BLM | D191: 652 | E191: EUR | F191: 978 | G191: Euro
A192: Saint-Martin | B192: MF | C192: MAF | D192: 663 | E192: EUR | F192: 978 | G192: Euro
A193: Samoa | B193: WS | C193: WSM | D193: 882 | E193: WST | F193: 882 | G193: Samoan tala
A194: San Marino | B194: SM | C194: SMR | D194: 674 | E194: EUR | F194: 978 | G194: Euro
A195: Sao Tome and Principe | B195: ST | C195: STP | D195: 678 | E195: STD | F195: 678 | G195: São Tomé and Príncipe Dobra
A196: Saudi Arabia | B196: SA | C196: SAU | D196: 682 | E196: SAR | F196: 682 | G196: Saudi Riyal
A197: Senegal | B197: SN | C197: SEN | D197: 686 | E197: XOF | F197: 952 | G197: West African CFA franc
A198: Serbia | B198: RS | C198: SRB | D198: 688 | E198: RSD | F198: 941 | G198: Serbian Dinar
A199: Seychelles | B199: SC | C199: SYC | D199: 690 | E199: SCR | F199: 690 | G199: Seychellois rupee
A200: Sierra Leone | B200: SL | C200: SLE | D200: 694 | E200: SLL | F200: 694 | G200: Sierra Leonean leone
... 46 more rows
